Portfolio,Expense Area,Cost Centre,Expense Type,Account Code,Amount,Supplier Name,SupplierId,Pay Date,Transaction No.,,VAT No.,Co. Reg. No.,VAT No.,Voucher Type,�,Trans Date
Environment and Public Realm,Garage,WVR00,Personal Protective Equipment,306,168.8,Arco Limited,100015,04/10/2018,10264002,TC,,,166911546,PN,597.59,43368
Environment and Public Realm,Domestic Waste Collection/Recycling,REF00,Personal Protective Clothing,340,57.59,Arco Limited,100015,04/10/2018,10264002,TC,,,166911546,PN,597.59,43368
Capital Communities and Homes,WSU Depot,WDP00,Personal Protective Clothing,340,271.6,Arco Limited,100015,04/10/2018,10264002,TC,,,166911546,PN,597.59,43368
Environment and Public Realm,Domestic Waste Collection/Recycling,REF00,Personal Protective Clothing,340,912.96,Arco Limited,100015,04/10/2018,10264081,TC,,,166911546,PN,1585.81,43370
Environment and Public Realm,Street Cleansing General,STC00,Personal Protective Clothing,340,244.39,Arco Limited,100015,04/10/2018,10264081,TC,,,166911546,PN,1585.81,43370
Environment and Public Realm,WSU Depot,WDP00,Personal Protective Clothing,340,41.96,Arco Limited,100015,04/10/2018,10264081,TC,,,166911546,PN,1585.81,43370
Environment and Public Realm,Garage,WVR00,Personal Protective Clothing,340,48.88,Arco Limited,100015,04/10/2018,10264081,TC,,,166911546,PN,1585.81,43370
Environment and Public Realm,Trade Waste Collection,WWC01,Personal Protective Clothing,340,73.32,Arco Limited,100015,04/10/2018,10264081,TC,,,166911546,PN,1585.81,43370
Environment and Public Realm,WSU Depot,WDP00,Messing Facilities,332,427.85,Arco Limited,100015,04/10/2018,10264082,TC,,,166911546,PN,513.42,43370
Environment and Public Realm,Highways,HIG20,Materials,303,890.1,Autopa Ltd,100046,18/10/2018,10264636,CS,,,GB196655022,PI,1068.12,43385
Environment and Public Realm,Repairs and Maintenance - Void works,UMR09,R&M External Contractors,100,1146.92,AWM Electrical Contractors Ltd,100051,04/10/2018,10264048,CS,,7430696,661675907,PN,1376.3,43369
Environment and Public Realm,Electrical maintenance,UMR10,R&M External Contractors,100,667.2,AWM Electrical Contractors Ltd,100051,11/10/2018,10264052,CS,,7430696,661675907,PN,995.99,43369
Environment and Public Realm,Miscellaneous Unplanned Maintenance and Repair,UMR17,R&M External Contractors,100,144.31,AWM Electrical Contractors Ltd,100051,11/10/2018,10264052,CS,,7430696,661675907,PN,995.99,43369
Capital Communities and Homes,Ashwood Court Supported Flats,MSF01,Internal Contractor,743,18.48,AWM Electrical Contractors Ltd,100051,11/10/2018,10264052,CS,,7430696,661675907,PN,995.99,43369
Environment and Public Realm,Repairs and Maintenance - Void works,UMR09,R&M External Contractors,100,3255.99,AWM Electrical Contractors Ltd,100051,04/10/2018,10264053,CS,,7430696,661675907,PN,3907.19,43369
Environment and Public Realm,Electrical Inspections,UMR04,R&M External Contractors,100,203.54,AWM Electrical Contractors Ltd,100051,04/10/2018,10264243,CS,,7430696,661675907,PN,2291.89,43375
Environment and Public Realm,Electrical maintenance,UMR10,R&M External Contractors,100,1301.41,AWM Electrical Contractors Ltd,100051,04/10/2018,10264243,CS,,7430696,661675907,PN,2291.89,43375
Environment and Public Realm,Miscellaneous Unplanned Maintenance and Repair,UMR17,R&M External Contractors,100,404.96,AWM Electrical Contractors Ltd,100051,04/10/2018,10264243,CS,,7430696,661675907,PN,2291.89,43375
Environment and Public Realm,Electrical maintenance,UMR10,R&M External Contractors,100,488.5,AWM Electrical Contractors Ltd,100051,04/10/2018,10264244,CS,,7430696,661675907,PN,586.2,43375
Environment and Public Realm,Gas Heating Systems,UMR01,R&M External Contractors,100,51.25,AWM Electrical Contractors Ltd,100051,04/10/2018,10264337,CS,,7430696,661675907,PN,1377.53,43376
Environment and Public Realm,Electrical Inspections,UMR04,R&M External Contractors,100,687.96,AWM Electrical Contractors Ltd,100051,04/10/2018,10264337,CS,,7430696,661675907,PN,1377.53,43376
Environment and Public Realm,Electrical maintenance,UMR10,R&M External Contractors,100,408.73,AWM Electrical Contractors Ltd,100051,04/10/2018,10264337,CS,,7430696,661675907,PN,1377.53,43376
Environment and Public Realm,Electrical Inspections,UMR04,R&M External Contractors,100,439.5,AWM Electrical Contractors Ltd,100051,11/10/2018,10264401,CS,,7430696,661675907,PN,1702.93,43378
Environment and Public Realm,Electrical maintenance,UMR10,R&M External Contractors,100,917.23,AWM Electrical Contractors Ltd,100051,11/10/2018,10264401,CS,,7430696,661675907,PN,1702.93,43378
Environment and Public Realm,Miscellaneous Unplanned Maintenance and Repair,UMR17,R&M External Contractors,100,62.38,AWM Electrical Contractors Ltd,100051,11/10/2018,10264401,CS,,7430696,661675907,PN,1702.93,43378
Environment and Public Realm,Repairs and Maintenance - Void works,UMR09,R&M External Contractors,100,1029.31,AWM Electrical Contractors Ltd,100051,11/10/2018,10264402,CS,,7430696,661675907,PN,1235.17,43390
Environment and Public Realm,Gas Heating Systems,UMR01,R&M External Contractors,100,43,AWM Electrical Contractors Ltd,100051,11/10/2018,10264403,CS,,7430696,661675907,PN,709.73,43378
Environment and Public Realm,Electrical Inspections,UMR04,R&M External Contractors,100,152.88,AWM Electrical Contractors Ltd,100051,11/10/2018,10264403,CS,,7430696,661675907,PN,709.73,43378
Environment and Public Realm,Electrical maintenance,UMR10,R&M External Contractors,100,331.77,AWM Electrical Contractors Ltd,100051,11/10/2018,10264403,CS,,7430696,661675907,PN,709.73,43378
Environment and Public Realm,Miscellaneous Unplanned Maintenance and Repair,UMR17,R&M External Contractors,100,43,AWM Electrical Contractors Ltd,100051,11/10/2018,10264403,CS,,7430696,661675907,PN,709.73,43378
Capital Communities and Homes,Multi-Storey Flats,MSF00,Other Miscellaneous Expenses,444,20.79,AWM Electrical Contractors Ltd,100051,11/10/2018,10264403,CS,,7430696,661675907,PN,709.73,43378
Environment and Public Realm,Repairs and Maintenance - Void works,UMR09,R&M External Contractors,100,563.83,AWM Electrical Contractors Ltd,100051,11/10/2018,10264404,CS,,7430696,661675907,PN,1118.09,43378
Environment and Public Realm,Electrical maintenance,UMR10,R&M External Contractors,100,324.91,AWM Electrical Contractors Ltd,100051,11/10/2018,10264404,CS,,7430696,661675907,PN,1118.09,43378
Environment and Public Realm,Miscellaneous Unplanned Maintenance and Repair,UMR17,R&M External Contractors,100,43,AWM Electrical Contractors Ltd,100051,11/10/2018,10264404,CS,,7430696,661675907,PN,1118.09,43378
Environment and Public Realm,Gas Heating Systems,UMR01,R&M External Contractors,100,69.92,AWM Electrical Contractors Ltd,100051,18/10/2018,10264582,CS,,7430696,661675907,PN,942.11,43384
Environment and Public Realm,Electrical Inspections,UMR04,R&M External Contractors,100,687.96,AWM Electrical Contractors Ltd,100051,18/10/2018,10264582,CS,,7430696,661675907,PN,942.11,43384
Environment and Public Realm,Electrical maintenance,UMR10,R&M External Contractors,100,27.21,AWM Electrical Contractors Ltd,100051,18/10/2018,10264582,CS,,7430696,661675907,PN,942.11,43384
Environment and Public Realm,Electrical maintenance,UMR10,R&M External Contractors,100,2171.8,AWM Electrical Contractors Ltd,100051,18/10/2018,10264583,CS,,7430696,661675907,PN,3472.49,43384
Environment and Public Realm,Miscellaneous Unplanned Maintenance and Repair,UMR17,R&M External Contractors,100,339.48,AWM Electrical Contractors Ltd,100051,18/10/2018,10264583,CS,,7430696,661675907,PN,3472.49,43384
Capital Communities and Homes,Fire Risk Prevention Works,HCE18,Capital Contract Payments,5000,382.46,AWM Electrical Contractors Ltd,100051,18/10/2018,10264583,CS,,7430696,661675907,PN,3472.49,43384
Environment and Public Realm,Electrical Inspections,UMR04,R&M External Contractors,100,272.13,AWM Electrical Contractors Ltd,100051,18/10/2018,10264584,CS,,7430696,661675907,PN,2141.77,43384
Environment and Public Realm,Electrical maintenance,UMR10,R&M External Contractors,100,865.23,AWM Electrical Contractors Ltd,100051,18/10/2018,10264584,CS,,7430696,661675907,PN,2141.77,43384
Environment and Public Realm,Miscellaneous Unplanned Maintenance and Repair,UMR17,R&M External Contractors,100,364.78,AWM Electrical Contractors Ltd,100051,18/10/2018,10264584,CS,,7430696,661675907,PN,2141.77,43384
Environment and Public Realm,Repairs and Maintenance - rechargeable works,UMR20,R&M External Contractors,100,282.66,AWM Electrical Contractors Ltd,100051,18/10/2018,10264584,CS,,7430696,661675907,PN,2141.77,43384
Environment and Public Realm,Electrical Inspections,UMR04,R&M External Contractors,100,687.96,AWM Electrical Contractors Ltd,100051,18/10/2018,10264585,CS,,7430696,661675907,PN,851.35,43384
Environment and Public Realm,Electrical maintenance,UMR10,R&M External Contractors,100,21.5,AWM Electrical Contractors Ltd,100051,18/10/2018,10264585,CS,,7430696,661675907,PN,851.35,43384
Environment and Public Realm,Repairs and Maintenance - Void works,UMR09,R&M External Contractors,100,436.31,AWM Electrical Contractors Ltd,100051,18/10/2018,10264586,CS,,7430696,661675907,PN,523.57,43384
Environment and Public Realm,Repairs and Maintenance - Void works,UMR09,R&M External Contractors,100,474.22,AWM Electrical Contractors Ltd,100051,18/10/2018,10264587,CS,,7430696,661675907,PN,594.86,43384
Capital Communities and Homes,Multi-Storey Flats,MSF00,Other Miscellaneous Expenses,444,21.5,AWM Electrical Contractors Ltd,100051,18/10/2018,10264587,CS,,7430696,661675907,PN,594.86,43384
Environment and Public Realm,Electrical Inspections,UMR04,R&M External Contractors,100,1010,AWM Electrical Contractors Ltd,100051,18/10/2018,10264705,CS,,7430696,661675907,PN,2502.58,43389
Environment and Public Realm,Electrical maintenance,UMR10,R&M External Contractors,100,1075.48,AWM Electrical Contractors Ltd,100051,18/10/2018,10264705,CS,,7430696,661675907,PN,2502.58,43389
Environment and Public Realm,Repairs and Maintenance - Void works,UMR09,R&M External Contractors,100,722.49,AWM Electrical Contractors Ltd,100051,18/10/2018,10264706,CS,,7430696,661675907,PN,866.99,43389
Environment and Public Realm,Electrical Inspections,UMR04,R&M External Contractors,100,611.52,AWM Electrical Contractors Ltd,100051,18/10/2018,10264707,CS,,7430696,661675907,PN,1077.3,43389
Environment and Public Realm,Electrical maintenance,UMR10,R&M External Contractors,100,286.23,AWM Electrical Contractors Ltd,100051,18/10/2018,10264707,CS,,7430696,661675907,PN,1077.3,43389
Environment and Public Realm,Electrical Inspections,UMR04,R&M External Contractors,100,446.41,AWM Electrical Contractors Ltd,100051,18/10/2018,10264708,CS,,7430696,661675907,PN,1824.58,43389
Environment and Public Realm,Electrical maintenance,UMR10,R&M External Contractors,100,973.41,AWM Electrical Contractors Ltd,100051,18/10/2018,10264708,CS,,7430696,661675907,PN,1824.58,43389
Capital Communities and Homes,Fire Risk Prevention Works,HCE18,Capital Contract Payments,5000,100.67,AWM Electrical Contractors Ltd,100051,18/10/2018,10264708,CS,,7430696,661675907,PN,1824.58,43389
Environment and Public Realm,Repairs and Maintenance - Void works,UMR09,R&M External Contractors,100,860.51,AWM Electrical Contractors Ltd,100051,25/10/2018,10264770,CS,,7430696,661675907,PN,1032.61,43391
Environment and Public Realm,Electrical maintenance,UMR10,R&M External Contractors,100,1021.28,AWM Electrical Contractors Ltd,100051,25/10/2018,10264771,CS,,7430696,661675907,PN,1225.54,43391
Environment and Public Realm,Repairs and Maintenance - Void works,UMR09,R&M External Contractors,100,446.7,AWM Electrical Contractors Ltd,100051,25/10/2018,10264827,CS,,7430696,661675907,PN,536.04,43392
Environment and Public Realm,Electrical Inspections,UMR04,R&M External Contractors,100,152.88,AWM Electrical Contractors Ltd,100051,25/10/2018,10264828,CS,,7430696,661675907,PN,1354.1,43392
Environment and Public Realm,Electrical maintenance,UMR10,R&M External Contractors,100,774.68,AWM Electrical Contractors Ltd,100051,25/10/2018,10264828,CS,,7430696,661675907,PN,1354.1,43392
Capital Communities and Homes,Fire Risk Prevention Works,HCE18,Capital Contract Payments,5000,200.86,AWM Electrical Contractors Ltd,100051,25/10/2018,10264828,CS,,7430696,661675907,PN,1354.1,43392
Environment and Public Realm,Electrical Inspections,UMR04,R&M External Contractors,100,76.44,AWM Electrical Contractors Ltd,100051,25/10/2018,10264882,CS,,7430696,661675907,PN,3728.33,43396
Environment and Public Realm,Electrical maintenance,UMR10,R&M External Contractors,100,1970.2,AWM Electrical Contractors Ltd,100051,25/10/2018,10264882,CS,,7430696,661675907,PN,3728.33,43396
Environment and Public Realm,Miscellaneous Unplanned Maintenance and Repair,UMR17,R&M External Contractors,100,16.8,AWM Electrical Contractors Ltd,100051,25/10/2018,10264882,CS,,7430696,661675907,PN,3728.33,43396
Capital Communities and Homes,Multi-Storey Flats,MSF00,Other Miscellaneous Expenses,444,41.58,AWM Electrical Contractors Ltd,100051,25/10/2018,10264882,CS,,7430696,661675907,PN,3728.33,43396
Capital Communities and Homes,Fire Risk Prevention Works,HCE18,Capital Contract Payments,5000,1001.92,AWM Electrical Contractors Ltd,100051,25/10/2018,10264882,CS,,7430696,661675907,PN,3728.33,43396
Capital Communities and Homes,Kitchen Modifications,HIK10,Capital Contract Payments,5000,7550.58,A C E Carpentry & Joinery Contractors Ltd,100085,18/10/2018,10264578,CS,,4120783,729422428,PN,9060.7,43384
Environment and Public Realm,Highways,HIG20,Materials,303,468.25,Aggregate Industries UK Limited,100134,18/10/2018,10264635,TC,,,533260571,PI,561.9,43385
Environment and Public Realm,Grass Cutting- Parishes,PKS13,External Contractor & Operator,742,595,Birdingbury Parish Council,100145,25/10/2018,10264833,TC,,,,PN,595,43392
Capital Communities and Homes,Council Tax and NNDR Collection,CTX01,External Legal Costs,741,84.94,Bristow & Sutor,100159,04/10/2018,10264134,TC,,,294694111,PN,757.64,43371
Capital Communities and Homes,Council Tax and NNDR Collection,CTX01,External Legal Costs,741,0.6,Bristow & Sutor,100159,18/10/2018,10264641,TC,,,294694111,PN,875.68,43385
Capital Communities and Homes,Council Tax and NNDR Collection,CTX01,External Legal Costs,741,183.82,Bristow & Sutor,100159,25/10/2018,10264826,TC,,,294694111,PN,714.95,43392
Environment and Public Realm,Car Parks General,CPK01,Subscriptions,421,661,British Parking Association,100176,11/10/2018,10264484,TC,,,600337686,PI,793.2,43382
Capital Communities and Homes,Universal Credit Support,CAS04,Other Agencies,734,1338.75,Benn Partnership Centre,100235,04/10/2018,10264236,TC,,,,PI,1338.75,43375
Capital Communities and Homes,Corporate Property R&M,CPA01,R&M External Contractors,100,821.08,Chillaire Service & Maintenance Ltd,100305,11/10/2018,10264423,TC,,4622016,806802244,PN,985.3,43381
Capital Communities and Homes,Corporate Property R&M,CPA01,R&M External Contractors,100,853.49,Chillaire Service & Maintenance Ltd,100305,11/10/2018,10264424,TC,,4622016,806802244,PN,1024.19,43381
Capital Communities and Homes,Grounds Maintenance,PKS20,Contract Hire,220,704,Clements Plant & Tool Hire Ltd,100309,11/10/2018,10264387,TC,,,272388144,PN,844.8,43377
Capital Communities and Homes,Regulatory Services,REG00,Other Miscellaneous Expenses,444,2689,Heart Of England Co-operative Society Ltd,100479,04/10/2018,10264257,TC,,,328078938,PN,2689,43375
Capital Communities and Homes,ITC & Support Services,CIS10,Photocopying,354,1307.84,Canon (UK) Limited,100514,04/10/2018,10264179,TC,,1264300,523797128,PN,1569.41,43374
Capital Communities and Homes,ITC & Support Services,CIS10,Photocopying,354,2997.83,Canon (UK) Limited,100514,04/10/2018,10264180,TC,,1264300,523797128,PN,3597.4,43374
Capital Communities and Homes,ITC & Support Services,CIS10,Photocopying,354,3484.31,Canon (UK) Limited,100514,04/10/2018,10264181,TC,,1264300,523797128,PN,4181.17,43374
Capital Communities and Homes,ITC & Support Services,CIS10,Photocopying,354,429.27,Canon (UK) Limited,100514,11/10/2018,10264417,TC,,1264300,523797128,PN,515.12,43378
Environment and Public Realm,Domestic Waste Collection/Recycling,REF00,Vehicle Repair and Maintenance,200,1264.78,Dennis Eagle Ltd,100559,04/10/2018,10263655,TC,,,272 4968 27,PN,1517.74,43355
Environment and Public Realm,Domestic Waste Collection/Recycling,REF00,Vehicle Repair and Maintenance,200,500.5,Dennis Eagle Ltd,100559,04/10/2018,10263657,TC,,,272 4968 27,PN,600.6,43355
Environment and Public Realm,Domestic Waste Collection/Recycling,REF00,Vehicle Repair and Maintenance,200,482.63,Dennis Eagle Ltd,100559,11/10/2018,10264245,TC,,,272 4968 27,PN,579.16,43375
Capital Communities and Homes,Corporate Property R&M,CPA01,R&M External Contractors,100,963.6,Dunchurch Services (Rugby) Ltd,100565,11/10/2018,10264102,CS,,2693688,623535748,PN,1156.32,43371
Capital Communities and Homes,Corporate Property R&M,CPA01,R&M External Contractors,100,667,Dunchurch Services (Rugby) Ltd,100565,18/10/2018,10264630,CS,,2693688,623535748,PN,800.4,43385
Capital Communities and Homes,Corporate Property Central Utilities,CPA02,Gas,131,818.42,ESPO,100641,11/10/2018,10263862,TC,,,705180561,PN,982.1,43367
Capital Communities and Homes,Corporate Property Central Utilities,CPA02,Gas,131,533.07,ESPO,100641,11/10/2018,10263868,TC,,,705180561,PN,559.72,43367
Capital Communities and Homes,Albert Square AP,AGP20,Gas,131,639.12,ESPO,100641,11/10/2018,10263872,TC,,,705180561,PN,766.94,43367
Capital Communities and Homes,Lesley Souter House AP,AGP16,Gas,131,523.1,ESPO,100641,11/10/2018,10263874,TC,,,705180561,PN,627.72,43367
Capital Communities and Homes,Tanser Court AP,AGP17,Gas,131,476.88,ESPO,100641,11/10/2018,10263876,TC,,,705180561,PN,572.26,43367
Capital Communities and Homes,Corporate Property Central Utilities,CPA02,Gas,131,1110.76,ESPO,100641,18/10/2018,10264551,TC,,,705180561,PN,1166.3,43384
Capital Communities and Homes,Corporate Property Central Utilities,CPA02,Gas,131,683.68,ESPO,100641,18/10/2018,10264552,TC,,,705180561,PN,820.42,43384
Capital Communities and Homes,Albert Square AP,AGP20,Gas,131,776.87,ESPO,100641,18/10/2018,10264554,TC,,,705180561,PN,932.24,43384
Capital Communities and Homes,Lesley Souter House AP,AGP16,Gas,131,662.3,ESPO,100641,18/10/2018,10264555,TC,,,705180561,PN,794.76,43384
Capital Communities and Homes,Tanser Court AP,AGP17,Gas,131,588.59,ESPO,100641,18/10/2018,10264556,TC,,,705180561,PN,706.31,43384
Capital Communities and Homes,Crematorium,CRM00,Gas,131,1104.74,ESPO,100641,18/10/2018,10264575,TC,,,705180561,PN,1325.69,43384
Environment and Public Realm,Repairs and Maintenance - Void works,UMR09,R&M External Contractors,100,832.62,Nationwide Windows Ltd,100808,04/10/2018,10264063,CS,,2025613,792405224,PN,5738.45,43369
Capital Communities and Homes,Fire Risk Prevention Works,HCE18,Capital Contract Payments,5000,870.92,Nationwide Windows Ltd,100808,04/10/2018,10264063,CS,,2025613,792405224,PN,5738.45,43369
Capital Communities and Homes,Housing Window Replacement,HWR00,Capital Contract Payments,5000,3078.5,Nationwide Windows Ltd,100808,04/10/2018,10264063,CS,,2025613,792405224,PN,5738.45,43369
Environment and Public Realm,Repairs and Maintenance - Void works,UMR09,R&M External Contractors,100,1328.84,Nationwide Windows Ltd,100808,18/10/2018,10264598,CS,,2025613,792405224,PN,1594.61,43384
Environment and Public Realm,Domestic Waste Collection/Recycling,REF00,Vehicle Repair and Maintenance,200,325.76,Ford & Slater,100817,11/10/2018,10264255,TC,,,565 7608 07,PN,856.72,43375
Environment and Public Realm,Street Cleansing General,STC00,Vehicle Repair and Maintenance,200,384.23,Ford & Slater,100817,11/10/2018,10264255,TC,,,565 7608 07,PN,856.72,43375
Environment and Public Realm,Trade Waste Collection,WWC01,Vehicle Repair and Maintenance,200,3.95,Ford & Slater,100817,11/10/2018,10264255,TC,,,565 7608 07,PN,856.72,43375
Environment and Public Realm,Street Cleansing General,STC00,Vehicle Repair and Maintenance,200,985.2,Ford & Slater,100817,25/10/2018,10264718,TC,,,565 7608 07,PN,1182.24,43390
Capital Communities and Homes,Biart Place - Capital,BIA00,Capital Contract Payments,5000,450,Godfrey-Payton Chartered Surveyors,100937,04/10/2018,10264274,TC,,,272440179,PI,540,43376
Capital Communities and Homes,Corporate Property Management,CPM00,Asset Management Expenses,448,491.75,Godfrey-Payton Chartered Surveyors,100937,11/10/2018,10264393,TC,,,272440179,PN,590.1,43377
Capital Communities and Homes,Visitor Centre,VSC00,Purchases for Resale,305,954.7,Grays of Cambridge (Intl) Limited,100949,11/10/2018,10264270,TC,,,213436495,PI,1145.64,43376
Capital Communities and Homes,Human Resources Centralised Services,RES31,Recruitment Expenses,12,566.76,TMP (UK) LTD,100972,04/10/2018,10263897,TC,,,872904502,PI,680.11,43367
Capital Communities and Homes,Human Resources Centralised Services,RES31,Recruitment Expenses,12,1600,TMP (UK) LTD,100972,18/10/2018,10264694,TC,,,872904502,PI,1920,43389
Capital Communities and Homes,Human Resources Centralised Services,RES31,Recruitment Expenses,12,445.2,TMP (UK) LTD,100972,18/10/2018,10264695,TC,,,872904502,PI,534.24,43389
Capital Communities and Homes,Whitehall Recreation Ground,LEI23,Capital Contract Payments,5000,5316.96,Kompan Ltd,101199,04/10/2018,10263493,CS,,1704623,382219257,PI,6380.35,43350
Environment and Public Realm,Unplanned Maintenance and Repair,UMR00,External Contractor & Operator,742,733.4,Clews Recycling Limited,101213,04/10/2018,10264054,TC,,,747316619,PN,880.08,43369
Environment and Public Realm,Unplanned Maintenance and Repair,UMR00,External Contractor & Operator,742,722.87,Clews Recycling Limited,101213,11/10/2018,10264313,TC,,,747316619,PN,867.44,43376
Environment and Public Realm,Unplanned Maintenance and Repair,UMR00,External Contractor & Operator,742,550.37,Clews Recycling Limited,101213,11/10/2018,10264432,TC,,,747316619,PN,660.44,43381
Environment and Public Realm,Parks,PKS00,External Contractor & Operator,742,900,Middlemarch Environmental Ltd,101337,04/10/2018,10263910,TC,,,670 3187 40,PI,1080,43367
Capital Communities and Homes,Visitor Centre,VSC00,Publicity & Marketing,377,556,Neil Terry Printing,101363,11/10/2018,10264390,TC,,,307525472,PN,667.2,43377
Capital Communities and Homes,Maintenance of Customer Services Systems,CIS21,Software Maintenance,374,756,Ncc Services Limited,101374,11/10/2018,10263825,TC,,2802141,732334556,PN,756,43364
Capital Communities and Homes,Maintenance of Customer Services Systems,CIS21,Software Maintenance,374,630,Ncc Services Limited,101374,11/10/2018,10263826,TC,,2802141,732334556,PN,756,43364
Capital Communities and Homes,Sheltered Housing,AGP00,Telephone Expenses,371,249.22,EE Ltd t/a Orange Personal Communications,101404,04/10/2018,10264166,TC,,,529221751,PN,5131.4,43374
Capital Communities and Homes,Crematorium,CRM00,Telephone Expenses,371,23.5,EE Ltd t/a Orange Personal Communications,101404,04/10/2018,10264166,TC,,,529221751,PN,5131.4,43374
Capital Communities and Homes,Supervision and Management General,MAN00,Telephone Expenses,371,129.38,EE Ltd t/a Orange Personal Communications,101404,04/10/2018,10264166,TC,,,529221751,PN,5131.4,43374
Capital Communities and Homes,Housing Management,MAN22,Telephone Expenses,371,11.75,EE Ltd t/a Orange Personal Communications,101404,04/10/2018,10264166,TC,,,529221751,PN,5131.4,43374
Capital Communities and Homes,Property Maintenance,MAN23,Telephone Expenses,371,178.5,EE Ltd t/a Orange Personal Communications,101404,04/10/2018,10264166,TC,,,529221751,PN,5131.4,43374
Capital Communities and Homes,Voids & Allocations Team,MAN24,Telephone Expenses,371,58,EE Ltd t/a Orange Personal Communications,101404,04/10/2018,10264166,TC,,,529221751,PN,5131.4,43374
Capital Communities and Homes,Multi-Storey Flats,MSF00,Telephone Expenses,371,11.75,EE Ltd t/a Orange Personal Communications,101404,04/10/2018,10264166,TC,,,529221751,PN,5131.4,43374
Capital Communities and Homes,Mobile telephones,TEL03,Telephone Expenses,371,2678,EE Ltd t/a Orange Personal Communications,101404,04/10/2018,10264166,TC,,,529221751,PN,5131.4,43374
Environment and Public Realm,Unplanned Maintenance and Repair,UMR00,Telephone Expenses,371,924.31,EE Ltd t/a Orange Personal Communications,101404,04/10/2018,10264166,TC,,,529221751,PN,5131.4,43374
Environment and Public Realm,Repairs and Maintenance - Void works,UMR09,Telephone Expenses,371,11.75,EE Ltd t/a Orange Personal Communications,101404,04/10/2018,10264166,TC,,,529221751,PN,5131.4,43374
Capital Communities and Homes,Sheltered Housing,AGP00,Telephone Expenses,371,247.19,EE Ltd t/a Orange Personal Communications,101404,18/10/2018,10264712,TC,,,529221751,PN,5409.02,43389
Capital Communities and Homes,The Benn Hall,BHL00,Telephone Expenses,371,35.25,EE Ltd t/a Orange Personal Communications,101404,18/10/2018,10264712,TC,,,529221751,PN,5409.02,43389
Capital Communities and Homes,Crematorium,CRM00,Telephone Expenses,371,23.5,EE Ltd t/a Orange Personal Communications,101404,18/10/2018,10264712,TC,,,529221751,PN,5409.02,43389
Capital Communities and Homes,Supervision and Management General,MAN00,Telephone Expenses,371,129.76,EE Ltd t/a Orange Personal Communications,101404,18/10/2018,10264712,TC,,,529221751,PN,5409.02,43389
Capital Communities and Homes,Housing Management,MAN22,Telephone Expenses,371,11.75,EE Ltd t/a Orange Personal Communications,101404,18/10/2018,10264712,TC,,,529221751,PN,5409.02,43389
Capital Communities and Homes,Property Maintenance,MAN23,Telephone Expenses,371,128.53,EE Ltd t/a Orange Personal Communications,101404,18/10/2018,10264712,TC,,,529221751,PN,5409.02,43389
Capital Communities and Homes,Voids & Allocations Team,MAN24,Telephone Expenses,371,58,EE Ltd t/a Orange Personal Communications,101404,18/10/2018,10264712,TC,,,529221751,PN,5409.02,43389
Capital Communities and Homes,Multi-Storey Flats,MSF00,Telephone Expenses,371,11.75,EE Ltd t/a Orange Personal Communications,101404,18/10/2018,10264712,TC,,,529221751,PN,5409.02,43389
Capital Communities and Homes,Mobile telephones,TEL03,Telephone Expenses,371,2750.07,EE Ltd t/a Orange Personal Communications,101404,18/10/2018,10264712,TC,,,529221751,PN,5409.02,43389
Environment and Public Realm,Unplanned Maintenance and Repair,UMR00,Telephone Expenses,371,1102.37,EE Ltd t/a Orange Personal Communications,101404,18/10/2018,10264712,TC,,,529221751,PN,5409.02,43389
Environment and Public Realm,Repairs and Maintenance - Void works,UMR09,Telephone Expenses,371,11.75,EE Ltd t/a Orange Personal Communications,101404,18/10/2018,10264712,TC,,,529221751,PN,5409.02,43389
Environment and Public Realm,Sewage Disposal Plant,SDP00,R&M External Contractors,100,520.28,PJT Pumping Services,101438,11/10/2018,10264263,TC,,,618143943,PN,624.34,43376
Environment and Public Realm,Parks,PKS00,External Contractor & Operator,742,2500,Post To Post Fencing,101490,18/10/2018,10264693,CS,,,7729350133,PI,3270,43389
Environment and Public Realm,Gypsy & Traveller Enforcement,TRA00,External Contractor & Operator,742,225,Post To Post Fencing,101490,18/10/2018,10264693,CS,,,7729350133,PI,3270,43389
Environment and Public Realm,Miscellaneous Unplanned Maintenance and Repair,UMR17,R&M External Contractors,100,810,Reeds Plumbing & Heating Contractors Ltd,101504,04/10/2018,10264288,CS,,4468782,418 5847 32,PN,24967.2,43376
Environment and Public Realm,Disabled Adaptations,HCR01,Capital Contract Payments,5000,4308.44,Reeds Plumbing & Heating Contractors Ltd,101504,04/10/2018,10264288,CS,,4468782,418 5847 32,PN,24967.2,43376
Environment and Public Realm,Kitchen Modifications,HIK10,Capital Contract Payments,5000,1010,Reeds Plumbing & Heating Contractors Ltd,101504,04/10/2018,10264288,CS,,4468782,418 5847 32,PN,24967.2,43376
Environment and Public Realm,Bathroom Modifications,HIS01,Capital Contract Payments,5000,14677.56,Reeds Plumbing & Heating Contractors Ltd,101504,04/10/2018,10264288,CS,,4468782,418 5847 32,PN,24967.2,43376
Environment and Public Realm,Repairs and Maintenance - Void works,UMR09,R&M External Contractors,100,285,Reeds Plumbing & Heating Contractors Ltd,101504,25/10/2018,10264896,CS,,4468782,418 5847 32,PN,38289.7,43396
Environment and Public Realm,Disabled Adaptations,HCR01,Capital Contract Payments,5000,8510,Reeds Plumbing & Heating Contractors Ltd,101504,25/10/2018,10264896,CS,,4468782,418 5847 32,PN,38289.7,43396
Environment and Public Realm,Kitchen Modifications,HIK10,Capital Contract Payments,5000,2328,Reeds Plumbing & Heating Contractors Ltd,101504,25/10/2018,10264896,CS,,4468782,418 5847 32,PN,38289.7,43396
Environment and Public Realm,Bathroom Modifications,HIS01,Capital Contract Payments,5000,20785.08,Reeds Plumbing & Heating Contractors Ltd,101504,25/10/2018,10264896,CS,,4468782,418 5847 32,PN,38289.7,43396
Environment and Public Realm,Garage,WVR00,Materials,303,988,Rencar Services,101505,25/10/2018,10264858,TC,,,,PN,1185.6,43396
Capital Communities and Homes,Biart Place - Capital,BIA00,Capital Compensation Payments,5010,564.38,Rugby Borough Council,101516,04/10/2018,10264168,NT,,,,PN,564.38,43374
Capital Communities and Homes,Biart Place - Capital,BIA00,Capital Compensation Payments,5010,3417.75,Rugby Borough Council,101516,18/10/2018,10264652,NT,,,,PN,3417.75,43385
Capital Communities and Homes,Biart Place - Capital,BIA00,Capital Compensation Payments,5010,535.78,Rugby Borough Council,101516,18/10/2018,10264653,NT,,,,PN,535.78,43385
Capital Communities and Homes,Art Gallery and Museum,AGM00,Postage & Distribution,370,3.1,Royal Mail,101554,11/10/2018,10263850,TC,,,,PN,1679.9,43367
Capital Communities and Homes,Building Control Services,BCS00,Postage & Distribution,370,1.01,Royal Mail,101554,11/10/2018,10263850,TC,,,,PN,1679.9,43367
Capital Communities and Homes,Community Advice & Support Team,CAS00,Postage & Distribution,370,133.33,Royal Mail,101554,11/10/2018,10263850,TC,,,,PN,1679.9,43367
Capital Communities and Homes,Central Business Support Services,CSS15,Postage & Distribution,370,279.14,Royal Mail,101554,11/10/2018,10263850,TC,,,,PN,1679.9,43367
Capital Communities and Homes,Council Tax and NNDR Collection,CTX01,Postage & Distribution,370,678.43,Royal Mail,101554,11/10/2018,10263850,TC,,,,PN,1679.9,43367
Capital Communities and Homes,Electoral Registration,ERG00,Postage & Distribution,370,80.75,Royal Mail,101554,11/10/2018,10263850,TC,,,,PN,1679.9,43367
Capital Communities and Homes,Supervision and Management General,MAN00,Postage & Distribution,370,63.86,Royal Mail,101554,11/10/2018,10263850,TC,,,,PN,1679.9,43367
Capital Communities and Homes,Planning General/Income,PLN00,Postage & Distribution,370,82.36,Royal Mail,101554,11/10/2018,10263850,TC,,,,PN,1679.9,43367
Capital Communities and Homes,Domestic Waste Collection/Recycling,REF00,Postage & Distribution,370,0.62,Royal Mail,101554,11/10/2018,10263850,TC,,,,PN,1679.9,43367
Capital Communities and Homes,Household Green Waste Collections,REF06,Postage & Distribution,370,77.01,Royal Mail,101554,11/10/2018,10263850,TC,,,,PN,1679.9,43367
Environment and Public Realm,Unplanned Maintenance and Repair,UMR00,Postage & Distribution,370,0.31,Royal Mail,101554,11/10/2018,10263850,TC,,,,PN,1679.9,43367
Capital Communities and Homes,Art Gallery and Museum,AGM00,Postage & Distribution,370,0.8,Royal Mail,101554,11/10/2018,10264136,TC,,,,PN,1298.88,43371
Capital Communities and Homes,Building Control Services,BCS00,Postage & Distribution,370,0.4,Royal Mail,101554,11/10/2018,10264136,TC,,,,PN,1298.88,43371
Capital Communities and Homes,Community Advice & Support Team,CAS00,Postage & Distribution,370,218.82,Royal Mail,101554,11/10/2018,10264136,TC,,,,PN,1298.88,43371
Capital Communities and Homes,Central Business Support Services,CSS15,Postage & Distribution,370,242.8,Royal Mail,101554,11/10/2018,10264136,TC,,,,PN,1298.88,43371
Capital Communities and Homes,Council Tax and NNDR Collection,CTX01,Postage & Distribution,370,249.1,Royal Mail,101554,11/10/2018,10264136,TC,,,,PN,1298.88,43371
Capital Communities and Homes,Electoral Registration,ERG00,Postage & Distribution,370,92.4,Royal Mail,101554,11/10/2018,10264136,TC,,,,PN,1298.88,43371
Capital Communities and Homes,Supervision and Management General,MAN00,Postage & Distribution,370,188.9,Royal Mail,101554,11/10/2018,10264136,TC,,,,PN,1298.88,43371
Capital Communities and Homes,Planning General/Income,PLN00,Postage & Distribution,370,64.38,Royal Mail,101554,11/10/2018,10264136,TC,,,,PN,1298.88,43371
Environment and Public Realm,Domestic Waste Collection/Recycling,REF00,Postage & Distribution,370,9.39,Royal Mail,101554,11/10/2018,10264136,TC,,,,PN,1298.88,43371
Environment and Public Realm,Household Green Waste Collections,REF06,Postage & Distribution,370,13.85,Royal Mail,101554,11/10/2018,10264136,TC,,,,PN,1298.88,43371
Environment and Public Realm,Unplanned Maintenance and Repair,UMR00,Postage & Distribution,370,1.56,Royal Mail,101554,11/10/2018,10264136,TC,,,,PN,1298.88,43371
Capital Communities and Homes,Electoral Registration,ERG00,Postage & Distribution,370,928.55,Royal Mail,101554,25/10/2018,10264884,TC,,,,PN,1114.26,43396
Capital Communities and Homes,Parks,PKS00,Maintenance of Equipment,301,1104.76,Hags-smp Ltd,101562,25/10/2018,10264817,CS,,908021,GB207853851,PI,1325.71,43391
Capital Communities and Homes,Corporate Property Central Utilities,CPA02,Water Services,143,891.61,Water Plus,101610,11/10/2018,10263759,TC,,,,PN,891.61,43360
Environment and Public Realm,Bell House Redevelopment,BEL01,Capital Contract Payments,5000,-845.28,Water Plus,101610,26/09/2018,10264056,TC,,,,PN,-845.28,43369
Environment and Public Realm,Corporate Property Central Utilities,CPA02,Water Services,143,1429.92,Water Plus,101610,11/10/2018,10264366,TC,,,,PN,1429.92,43377
Environment and Public Realm,Bell House Redevelopment,BEL01,Capital Contract Payments,5000,1109.25,Water Plus,101610,11/10/2018,10264474,TC,,,,PN,1109.25,43382
Environment and Public Realm,Disabled Adaptations,HCR01,Capital Contract Payments,5000,880,Stannah Stairlifts Ltd,101623,04/10/2018,10264106,TC,,,236778328,PN,1056,43371
Environment and Public Realm,Disabled Adaptations,HCR01,Capital Contract Payments,5000,1826,Stannah Stairlifts Ltd,101623,11/10/2018,10264430,TC,,,236778328,PN,2191.2,43381
Environment and Public Realm,Disabled Adaptations,HCR01,R&M External Contractors,100,880,Stannah Stairlifts Ltd,101623,25/10/2018,10264725,TC,,,236778328,PN,1056,43390
Environment and Public Realm,Disabled Adaptations,HCR01,R&M External Contractors,100,1826,Stannah Stairlifts Ltd,101623,25/10/2018,10264728,TC,,,236778328,PN,2191.2,43390
Environment and Public Realm,Carpeting,UMR06,R&M External Contractors,100,800,Steve Diston Contract Flooring,101668,04/10/2018,10264162,TC,,,565 7420 25,PN,960,43374
Environment and Public Realm,Corporate Property R&M,CPA01,R&M External Contractors,100,769.87,Secom Plc,101671,25/10/2018,10264797,TC,,2585807,445838322,PN,923.84,43391
Environment and Public Realm,Corporate Property R&M,CPA01,R&M External Contractors,100,1810,Secom Plc,101671,25/10/2018,10264895,TC,,2585807,445838322,PN,2172,43396
Capital Communities and Homes,ITC & Support Services,CIS10,Subscriptions,421,995,SOCITM Limited,101682,18/10/2018,10264657,TC,,4396808,799604958,PN,1194,43385
Environment and Public Realm,Unplanned Maintenance and Repair,UMR00,Materials,303,739.5,Travis Perkins Trading Co Ltd,101732,18/10/2018,10264754,TC,,,408556737,PN,887.4,43390
Environment and Public Realm,Domestic Waste Collection/Recycling,REF00,Tyres,205,1648.98,HI-Q Tyreservices,101736,11/10/2018,10264252,TC,,,100159429,PN,2529.17,43375
Environment and Public Realm,Household Green Waste Collections,REF06,Tyres,205,235.33,HI-Q Tyreservices,101736,11/10/2018,10264252,TC,,,100159429,PN,2529.17,43375
Environment and Public Realm,Trade Waste Collection,WWC01,Tyres,205,223.33,HI-Q Tyreservices,101736,11/10/2018,10264252,TC,,,100159429,PN,2529.17,43375
Environment and Public Realm,Domestic Waste Collection/Recycling,REF00,Tyres,205,882,HI-Q Tyreservices,101736,25/10/2018,10264801,TC,,,100159429,PN,1963.87,43391
Environment and Public Realm,Household Green Waste Collections,REF06,Tyres,205,251.52,HI-Q Tyreservices,101736,25/10/2018,10264801,TC,,,100159429,PN,1963.87,43391
Environment and Public Realm,Trade Waste Collection,WWC01,Tyres,205,503.04,HI-Q Tyreservices,101736,25/10/2018,10264801,TC,,,100159429,PN,1963.87,43391
Environment and Public Realm,Domestic Waste Collection/Recycling,REF00,Tyres,205,672.99,HI-Q Tyreservices,101736,25/10/2018,10264891,TC,,,100159429,PN,1936.84,43396
Environment and Public Realm,Street Cleansing General,STC00,Tyres,205,438,HI-Q Tyreservices,101736,25/10/2018,10264891,TC,,,100159429,PN,1936.84,43396
Environment and Public Realm,Trade Waste Collection,WWC01,Tyres,205,503.04,HI-Q Tyreservices,101736,25/10/2018,10264891,TC,,,100159429,PN,1936.84,43396
Environment and Public Realm,Grounds Maintenance,PKS20,New Equipment,300,1449,Tudor Environmental,101743,11/10/2018,10264251,TC,,8693251,181621322,PN,1738.8,43375
Environment and Public Realm,Domestic Waste Collection/Recycling,REF00,Vehicle Repair and Maintenance,200,1103.39,Terberg Matec UK,101761,04/10/2018,10264135,TC,,,560 8785 10,PN,1324.07,43371
Environment and Public Realm,Whitehall Recreation Ground,LEI23,Capital Contract Payments,5000,10510,Wicksteed Leisure Limited,101845,18/10/2018,10264150,CS,,603152,GB119106690,PI,12612,43371
Environment and Public Realm,Parks,PKS00,Maintenance of Equipment,301,1621.28,Wicksteed Leisure Limited,101845,04/10/2018,10264151,CS,,603152,GB119106690,PI,1945.54,43371
Capital Communities and Homes,Retired Employees,RET00,Additional Pension Payments,14,2960,West Midlands Employers,101880,25/10/2018,10264824,TC,,,GB729635111,PN,2960,43392
Environment and Public Realm,Maintenance of Open Spaces,MOS00,External Contractor & Operator,742,2100,Warwickshire County Council,101893,11/10/2018,10264346,TC,,,272426659,PN,3600,43377
Environment and Public Realm,Parks,PKS00,External Contractor & Operator,742,900,Warwickshire County Council,101893,11/10/2018,10264346,TC,,,272426659,PN,3600,43377
Environment and Public Realm,Cemeteries General,CEM00,External Contractor & Operator,742,1836.9,Warwickshire County Council,101893,18/10/2018,10264622,TC,,,272426659,PN,11600.4,43384
Environment and Public Realm,Maintenance of Open Spaces,MOS00,External Contractor & Operator,742,4198.88,Warwickshire County Council,101893,18/10/2018,10264622,TC,,,272426659,PN,11600.4,43384
Environment and Public Realm,Parks,PKS00,External Contractor & Operator,742,3631.22,Warwickshire County Council,101893,18/10/2018,10264622,TC,,,272426659,PN,11600.4,43384
Capital Communities and Homes,Land Charges,LCH00,Consultancy Costs,740,11030.25,Warwickshire County Council,101893,18/10/2018,10264658,TC,,,272426659,PN,13236.3,43385
Environment and Public Realm,Cemeteries General,CEM00,External Contractor & Operator,742,4685,Warwickshire County Council,101893,25/10/2018,10264854,TC,,,272426659,PN,13982.4,43396
Environment and Public Realm,Maintenance of Open Spaces,MOS00,External Contractor & Operator,742,2500,Warwickshire County Council,101893,25/10/2018,10264854,TC,,,272426659,PN,13982.4,43396
Environment and Public Realm,Parks,PKS00,External Contractor & Operator,742,4167,Warwickshire County Council,101893,25/10/2018,10264854,TC,,,272426659,PN,13982.4,43396
Environment and Public Realm,Section 106 Grounds Maintenance,PKS16,External Contractor & Operator,742,300,Warwickshire County Council,101893,25/10/2018,10264854,TC,,,272426659,PN,13982.4,43396
Environment and Public Realm,Bell House Redevelopment,BEL01,Capital Contract Payments,5000,644.6,Warwickshire County Council,101893,25/10/2018,10264952,TC,,,272426659,PI,773.52,43397
Environment and Public Realm,Bell House Redevelopment,BEL01,Capital Contract Payments,5000,933.4,Warwickshire County Council,101893,25/10/2018,10264953,TC,,,272426659,PI,1120.08,43397
Environment and Public Realm,Miscellaneous Unplanned Maintenance and Repair,UMR17,R&M External Contractors,100,2350,Ser-Tec Systems Ltd,108074,18/10/2018,10264626,CS,,2027772,436865026,PN,2820,43385
Environment and Public Realm,Crematorium,CRM00,Medical Referees Fees,413,1350.5,Dunchurch Surgery,108687,11/10/2018,10264382,TC,,,,PN,1350.5,43377
Environment and Public Realm,Crematorium,CRM00,Medical Referees Fees,413,1147,Dunchurch Surgery,108687,25/10/2018,10264761,TC,,,,PN,1147,43390
Environment and Public Realm,Garage,WVR00,Materials,303,31240.06,Watson Petroleum,110361,18/10/2018,10264396,TC,,,195046059,PI,37488.07,43377
Environment and Public Realm,Garage,WVR00,Materials,303,2329.16,Watson Petroleum,110361,11/10/2018,10264397,TC,,,195046059,PI,2794.99,43377
Environment and Public Realm,Corporate Property R&M,CPA01,R&M External Contractors,100,531.92,Croxford Electrical Ltd,110451,11/10/2018,10264066,CS,,7751876,307 4408 76,PN,638.3,43369
Environment and Public Realm,Corporate Property R&M,CPA01,R&M External Contractors,100,650.93,Croxford Electrical Ltd,110451,11/10/2018,10264068,CS,,7751876,307 4408 76,PN,781.12,43369
Environment and Public Realm,Corporate Property R&M,CPA01,R&M External Contractors,100,581.24,Croxford Electrical Ltd,110451,25/10/2018,10264886,CS,,7751876,307 4408 76,PN,697.47,43396
Environment and Public Realm,Corporate Property R&M,CPA01,R&M External Contractors,100,778.11,Croxford Electrical Ltd,110451,25/10/2018,10264963,CS,,7751876,307 4408 76,PN,933.73,43397
Environment and Public Realm,Corporate Property R&M,CPA01,R&M External Contractors,100,717.01,Croxford Electrical Ltd,110451,25/10/2018,10264965,CS,,7751876,307 4408 76,PN,860.41,43397
Environment and Public Realm,Crematorium,CRM00,Purchases for Resale,305,499.22,P D Timms,111508,25/10/2018,10264866,TC,,,420836274,PN,599.06,43396
Environment and Public Realm,Crematorium,CRM00,Purchases for Resale,305,479.33,P D Timms,111508,25/10/2018,10264868,TC,,,420836274,PN,575.2,43396
Environment and Public Realm,Crematorium,CRM00,Purchases for Resale,305,493.33,P D Timms,111508,25/10/2018,10264869,TC,,,420836274,PN,592,43396
Environment and Public Realm,Crematorium,CRM00,Purchases for Resale,305,483.33,P D Timms,111508,25/10/2018,10264871,TC,,,420836274,PN,580,43396
Environment and Public Realm,Crematorium,CRM00,Purchases for Resale,305,471.33,P D Timms,111508,25/10/2018,10264872,TC,,,420836274,PN,565.6,43396
Environment and Public Realm,Crematorium,CRM00,Purchases for Resale,305,449.5,P D Timms,111508,25/10/2018,10264873,TC,,,420836274,PN,539.4,43396
Environment and Public Realm,Garage,WVR00,Materials,303,520,Vision Techniques (UK) LTD,111526,04/10/2018,10264086,TC,,,712562946,PN,624,43370
Capital Communities and Homes,Maintenance of Customer Services Systems,CIS21,Software Maintenance,374,5755.24,Experian Ltd,112302,04/10/2018,10264073,TC,,,145899025,PI,6906.29,43369
Capital Communities and Homes,Housing Management System,HCE08,IT Capital Expenditure,5025,10100,Civica UK Ltd,112724,11/10/2018,10264315,TC,,1909454,391171065,PN,12120,43376
Capital Communities and Homes,New licensing system,CMP37,Software Purchase,373,12500,Civica UK Ltd,112724,11/10/2018,10264373,TC,,1909454,391171065,PI,15000,43377
Capital Communities and Homes,Maintenance of Customer Services Systems,CIS21,Software Maintenance,374,34660,Civica UK Ltd,112724,18/10/2018,10264637,TC,,1909454,391171065,PI,41592,43385
Capital Communities and Homes,Maintenance of Customer Services Systems,CIS21,Software Purchase,373,4500,Civica UK Ltd,112724,25/10/2018,10264816,TC,,1909454,391171065,PI,5400,43391
Environment and Public Realm,Parks,PKS00,External Contractor & Operator,742,3906.56,Birmingham City Council,112881,11/10/2018,10264361,TC,,,112 0821 30,PN,3906.56,43377
Capital Communities and Homes,Corporate Property Central Utilities,CPA02,Electricity,130,1105.49,Southern Electric,118976,11/10/2018,10262901,TC,,,553769603,PN,1251.39,43332
Capital Communities and Homes,Corporate Property Central Utilities,CPA02,Electricity,130,571.46,Southern Electric,118976,11/10/2018,10263533,TC,,,553769603,PN,685.75,43353
Capital Communities and Homes,Crematorium,CRM00,External Contractor & Operator,742,720,M.P.C.S Services,119391,11/10/2018,10264539,TC,,,,PN,720,43383
Capital Communities and Homes,Human Resources Centralised Services,RES31,Training fees,11,1370.98,Nelson Training,120218,18/10/2018,10264599,TC,,,781446904,PN,1645.18,43384
Capital Communities and Homes,Maintenance of Customer Services Systems,CIS21,Software Maintenance,374,14800.5,Jadu Ltd,120407,25/10/2018,10264739,TC,,4643244,738720516,PN,17760.6,43390
Environment and Public Realm,Maintenance of Open Spaces,MOS00,External Contractor & Operator,742,551.15,Brinklow Quarry Ltd,122921,11/10/2018,10264295,TC,,6765411,273163073,PN,661.38,43376
Environment and Public Realm,Parks,PKS00,Maintenance of Equipment,301,538.59,Proludic,123148,18/10/2018,10264684,CS,,,796632872,PI,646.31,43389
Environment and Public Realm,ITC & Support Services,CIS10,Hardware Maintenance,376,3403.12,Cable & Wireless/T/A Vodafone,123224,11/10/2018,10264392,TC,,,569953277,PN,4083.74,43377
Environment and Public Realm,Street Furniture,LEI22,Capital Contract Payments,5000,1100,Broxap Limited,123396,25/10/2018,10264949,TC,,2583752,592526420,PI,1320,43397
Environment and Public Realm,CAST - Private Sector Leasing,CAS03,R&M External Contractors,100,641.68,Rite Price Furniture Ltd,125153,11/10/2018,10264416,TC,,,,PN,770.01,43378
Environment and Public Realm,Garage,WVR00,Materials,303,468.08,Shell U.K. Oil Products Limited,125672,11/10/2018,10264298,TC,,,235 763 255,PN,561.69,43376
Capital Communities and Homes,Multi-Storey Flats,MSF00,Other Miscellaneous Expenses,444,2890,Nicholls Colton Testing,129870,18/10/2018,10264155,TC,,5605955,876334495,PI,3468,43371
Capital Communities and Homes,Multi-Storey Flats,MSF00,Other Miscellaneous Expenses,444,1540,Nicholls Colton Testing,129870,18/10/2018,10264689,TC,,5605955,876334495,PI,1848,43389
Environment and Public Realm,Whitehall Recreation Ground,LEI23,Capital Contract Payments,5000,3407.75,Sutcliffe Play Ltd,131511,04/10/2018,10263444,TC,,4780910,817894678,PI,4089.3,43348
Environment and Public Realm,Parks,PKS00,Maintenance of Equipment,301,83.2,Sutcliffe Play Ltd,131511,04/10/2018,10264152,TC,,4780910,817894678,PI,1522.19,43371
Environment and Public Realm,Section 106 Grounds Maintenance,PKS16,Maintenance of Equipment,301,115,Sutcliffe Play Ltd,131511,04/10/2018,10264152,TC,,4780910,817894678,PI,1522.19,43371
Environment and Public Realm,Section 106 Grounds Maintenance,PKS16,External Contractor & Operator,742,1070.29,Sutcliffe Play Ltd,131511,04/10/2018,10264152,TC,,4780910,817894678,PI,1522.19,43371
Capital Communities and Homes,Electoral Registration,ERG00,External Printing,352,425.28,Electoral Reform Services,131623,11/10/2018,10264186,TC,,2263092,236 8689 15,PN,510.34,43374
Capital Communities and Homes,Electoral Registration,ERG00,Telephone Registration,411,3083.3,Electoral Reform Services,131623,25/10/2018,10264792,TC,,2263092,236 8689 15,PN,3699.96,43391
Capital Communities and Homes,Car Parks General,CPK01,Cash Collection,744,641.16,Jade Security Services Ltd,131711,04/10/2018,10264340,TC,,,642505654,PN,769.39,43376
Capital Communities and Homes,CAST - Bed & Breakfast,CAS01,Bed and Breakfast Temporary Accommodation,146,900,N Mallidi T/A Park Side Guest House,132033,25/10/2018,10264843,TC,,,,PN,900,43395
Capital Communities and Homes,CAST - Bed & Breakfast,CAS01,Bed and Breakfast Temporary Accommodation,146,581,N Mallidi T/A Park Side Guest House,132033,25/10/2018,10264881,TC,,,,PN,581,43396
Capital Communities and Homes,CAST - Bed & Breakfast,CAS01,Bed and Breakfast Temporary Accommodation,146,609,N Mallidi T/A Park Side Guest House,132033,25/10/2018,10264892,TC,,,,PN,609,43396
Capital Communities and Homes,Miscellaneous Unplanned Maintenance and Repair,UMR17,R&M External Contractors,100,940,RF Digital Ltd,133161,18/10/2018,10264702,TC,,,887307093,PN,1128,43389
Capital Communities and Homes,Biart Place - Capital,BIA00,Capital Compensation Payments,5010,1750,Personal Redacted Data,135528,04/10/2018,10264094,NT,,,,PN,1750,43370
Capital Communities and Homes,Biart Place - Capital,BIA00,Capital Compensation Payments,5010,5564.22,Personal Redacted Data,135528,18/10/2018,10264660,NT,,,,PN,5564.22,43385
Capital Communities and Homes,CL Grants,CGS00,Grants To Voluntary Organisations,720,17500,Bedworth Rugby & Nuneaton Citizens Advice Bureau,139552,04/10/2018,10264223,TC,,,,PN,21000,43375
Capital Communities and Homes,Multi-Storey Flats,MSF00,External Contractor & Operator,742,47476.8,StoneWall Security Ltd,140775,11/10/2018,10264439,TC,,6587546,937387578,PN,56972.16,43381
Capital Communities and Homes,Multi-Storey Flats,MSF00,External Contractor & Operator,742,31651.2,StoneWall Security Ltd,140775,11/10/2018,10264440,TC,,6587546,937387578,PN,37981.44,43381
Capital Communities and Homes,Car Parks General,CPK01,External Contractor & Operator,742,621,StoneWall Security Ltd,140775,11/10/2018,10264441,TC,,6587546,937387578,PN,745.2,43381
Capital Communities and Homes,CAST - Bed & Breakfast,CAS01,Bed and Breakfast Temporary Accommodation,146,945,The Holly Bush Inn,141607,11/10/2018,10264507,TC,,,897504477,PN,945,43382
Capital Communities and Homes,Crematorium,CRM00,Telephone Expenses,371,538,Zen Internet Ltd,141612,04/10/2018,10264249,TC,,3101568,686049501,PN,645.6,43375
Capital Communities and Homes,Broadband & internet,TEL01,Telephone Expenses,371,970.25,Zen Internet Ltd,141612,25/10/2018,10264847,TC,,3101568,686049501,PN,1164.3,43395
Environment and Public Realm,Domestic Waste Collection/Recycling,REF00,External Contractor & Operator,742,30735.7,Pure Recycling (Warwick) Limited,141883,11/10/2018,10263435,TC,,,922427047,PN,36882.84,43348
Environment and Public Realm,Domestic Waste Collection/Recycling,REF00,External Contractor & Operator,742,-5096.51,Pure Recycling (Warwick) Limited,141883,11/10/2018,10264419,TC,,,922427047,PN,-6115.81,43381
Environment and Public Realm,Gas Heating Systems,UMR01,R&M External Contractors,100,1560,Certsure LLP,142076,04/10/2018,10264127,TC,,2513162,799123488,PN,1872,43371
Capital Communities and Homes,Biart Place - Capital,BIA00,Capital Compensation Payments,5010,5788.52,Personal Redacted Data,142235,11/10/2018,10264411,NT,,,,PN,5788.52,43378
Capital Communities and Homes,Crematorium,CRM00,Agency Staff,3,250.08,Comensura Limited,142471,04/10/2018,10264297,TC,,4085767,755 3211 45,PN,10061.51,43376
Capital Communities and Homes,Grounds Maintenance,PKS20,Agency Staff,3,1768.64,Comensura Limited,142471,04/10/2018,10264297,TC,,4085767,755 3211 45,PN,10061.51,43376
Capital Communities and Homes,Domestic Waste Collection/Recycling,REF00,Agency Staff,3,5277.53,Comensura Limited,142471,04/10/2018,10264297,TC,,4085767,755 3211 45,PN,10061.51,43376
Capital Communities and Homes,Street Cleansing General,STC00,Agency Staff,3,415.02,Comensura Limited,142471,04/10/2018,10264297,TC,,4085767,755 3211 45,PN,10061.51,43376
Environment and Public Realm,Unplanned Maintenance and Repair,UMR00,Agency Staff,3,673.32,Comensura Limited,142471,04/10/2018,10264297,TC,,4085767,755 3211 45,PN,10061.51,43376
Capital Communities and Homes,Crematorium,CRM00,Agency Staff,3,250.08,Comensura Limited,142471,11/10/2018,10264522,TC,,4085767,755 3211 45,PN,10295.15,43383
Capital Communities and Homes,Grounds Maintenance,PKS20,Agency Staff,3,1770.64,Comensura Limited,142471,11/10/2018,10264522,TC,,4085767,755 3211 45,PN,10295.15,43383
Capital Communities and Homes,Domestic Waste Collection/Recycling,REF00,Agency Staff,3,5624.5,Comensura Limited,142471,11/10/2018,10264522,TC,,4085767,755 3211 45,PN,10295.15,43383
Capital Communities and Homes,Street Cleansing General,STC00,Agency Staff,3,264.82,Comensura Limited,142471,11/10/2018,10264522,TC,,4085767,755 3211 45,PN,10295.15,43383
Environment and Public Realm,Unplanned Maintenance and Repair,UMR00,Agency Staff,3,669.25,Comensura Limited,142471,11/10/2018,10264522,TC,,4085767,755 3211 45,PN,10295.15,43383
Capital Communities and Homes,Crematorium,CRM00,Agency Staff,3,250.08,Comensura Limited,142471,25/10/2018,10264737,TC,,4085767,755 3211 45,PN,9103.77,43390
Capital Communities and Homes,Grounds Maintenance,PKS20,Agency Staff,3,1640.78,Comensura Limited,142471,25/10/2018,10264737,TC,,4085767,755 3211 45,PN,9103.77,43390
Capital Communities and Homes,Domestic Waste Collection/Recycling,REF00,Agency Staff,3,4088.18,Comensura Limited,142471,25/10/2018,10264737,TC,,4085767,755 3211 45,PN,9103.77,43390
Capital Communities and Homes,Street Cleansing General,STC00,Agency Staff,3,943.02,Comensura Limited,142471,25/10/2018,10264737,TC,,4085767,755 3211 45,PN,9103.77,43390
Environment and Public Realm,Unplanned Maintenance and Repair,UMR00,Agency Staff,3,664.5,Comensura Limited,142471,25/10/2018,10264737,TC,,4085767,755 3211 45,PN,9103.77,43390
Environment and Public Realm,Trade Waste Collection,WWC01,Maintenance of Equipment,301,2116,UK Container Maintenance Limited,143118,11/10/2018,10264321,TC,,,725612740,PI,2539.2,43376
Capital Communities and Homes,CL Grants,CGS00,Grants To Voluntary Organisations,720,8250,Warwickshire Community and Voluntary Action,145040,25/10/2018,10264917,TC,,,,PN,9900,43397
Outside portfolio expenditure,Balance Sheet,BS,Ansty Parish Council precept holding account,9213,517.49,Personal Redacted Data,145094,04/10/2018,10264282,NT,,,,PN,517.49,43376
Capital Communities and Homes,Community Advice & Support Team,CAS00,Agency Staff,3,491.91,James Andrews Recruitment Solutions Ltd,145100,11/10/2018,10264376,TC,,6834852,976026696,PN,590.29,43377
Capital Communities and Homes,Community Advice & Support Team,CAS00,Agency Staff,3,1190.94,James Andrews Recruitment Solutions Ltd,145100,11/10/2018,10264518,TC,,6834852,976026696,PN,1429.13,43383
Capital Communities and Homes,Community Advice & Support Team,CAS00,Agency Staff,3,1277.24,James Andrews Recruitment Solutions Ltd,145100,18/10/2018,10264733,TC,,6834852,976026696,PN,1532.69,43390
Capital Communities and Homes,Community Advice & Support Team,CAS00,Agency Staff,3,1277.24,James Andrews Recruitment Solutions Ltd,145100,25/10/2018,10264922,TC,,6834852,976026696,PN,1532.69,43397
Capital Communities and Homes,Whitehall Recreation Ground,LEI23,Capital Contract Payments,5000,16251,Huck Nets Ltd (UK),145242,18/10/2018,10264400,TC,,3276081,684485292,PI,19501.2,43378
Environment and Public Realm,General Financial Services,GFS00,External Audit Fees,748,10581,Grant Thornton UK LLP,145501,11/10/2018,10263730,TC,,,835586102,PN,12697.2,43357
Environment and Public Realm,Street Furniture,LEI22,Capital Contract Payments,5000,5680,Larkin Engineering Enterprises LtdT/A Larkin Street Products,146442,04/10/2018,10264268,TC,,126530,4766413K,PI,5680,43376
Environment and Public Realm,WSU Depot,WDP00,Messing Facilities,332,445.39,Elite Healthcare Services Ltd,146607,25/10/2018,10263572,TC,,4360653,945665190,PN,534.47,43353
Environment and Public Realm,WSU Depot,WDP00,Messing Facilities,332,-445.39,Elite Healthcare Services Ltd,146607,25/10/2018,10264700,TC,,4360653,945665190,PN,-534.47,43389
Environment and Public Realm,Corporate Property Central Utilities,CPA02,Electricity,130,1452.48,Total Gas & Power Ltd,146631,11/10/2018,10263687,TC,,2172239,689638949,PN,1661.82,43356
Environment and Public Realm,Corporate Property R&M,CPA01,Electricity,130,3268.55,Total Gas & Power Ltd,146631,11/10/2018,10263689,TC,,2172239,689638949,PN,12740.96,43356
Environment and Public Realm,Corporate Property Central Utilities,CPA02,Electricity,130,5854.48,Total Gas & Power Ltd,146631,11/10/2018,10263689,TC,,2172239,689638949,PN,12740.96,43356
Environment and Public Realm,Crematorium,CRM00,Electricity,130,1275.33,Total Gas & Power Ltd,146631,11/10/2018,10263689,TC,,2172239,689638949,PN,12740.96,43356
Environment and Public Realm,Unplanned Maintenance and Repair,UMR00,Electricity,130,192.83,Total Gas & Power Ltd,146631,11/10/2018,10263689,TC,,2172239,689638949,PN,12740.96,43356
Environment and Public Realm,WSU Depot,WDP00,Electricity,130,44.32,Total Gas & Power Ltd,146631,11/10/2018,10263689,TC,,2172239,689638949,PN,12740.96,43356
Capital Communities and Homes,Sheltered Housing,AGP00,Electricity,130,189.24,Total Gas & Power Ltd,146631,18/10/2018,10264591,TC,,2172239,689638949,PN,9525.43,43384
Capital Communities and Homes,Alfred Green Close AP,AGP01,Electricity,130,-7.82,Total Gas & Power Ltd,146631,18/10/2018,10264591,TC,,2172239,689638949,PN,9525.43,43384
Capital Communities and Homes,Avon Court AP,AGP02,Electricity,130,200.2,Total Gas & Power Ltd,146631,18/10/2018,10264591,TC,,2172239,689638949,PN,9525.43,43384
Capital Communities and Homes,Dickinson Court AP,AGP03,Electricity,130,163.4,Total Gas & Power Ltd,146631,18/10/2018,10264591,TC,,2172239,689638949,PN,9525.43,43384
Capital Communities and Homes,Duffy Place AP,AGP04,Electricity,130,117.19,Total Gas & Power Ltd,146631,18/10/2018,10264591,TC,,2172239,689638949,PN,9525.43,43384
Capital Communities and Homes,Frederick Press Way AP,AGP06,Electricity,130,594.41,Total Gas & Power Ltd,146631,18/10/2018,10264591,TC,,2172239,689638949,PN,9525.43,43384
Capital Communities and Homes,John Thwaites Close AP,AGP08,Electricity,130,76.96,Total Gas & Power Ltd,146631,18/10/2018,10264591,TC,,2172239,689638949,PN,9525.43,43384
Capital Communities and Homes,Mercer Court AP,AGP09,Electricity,130,33.2,Total Gas & Power Ltd,146631,18/10/2018,10264591,TC,,2172239,689638949,PN,9525.43,43384
Capital Communities and Homes,Pettiver Crescent I AP,AGP10,Electricity,130,204.09,Total Gas & Power Ltd,146631,18/10/2018,10264591,TC,,2172239,689638949,PN,9525.43,43384
Capital Communities and Homes,Robotham Close AP,AGP11,Electricity,130,205.63,Total Gas & Power Ltd,146631,18/10/2018,10264591,TC,,2172239,689638949,PN,9525.43,43384
Capital Communities and Homes,Stacey Court AP,AGP12,Electricity,130,54.91,Total Gas & Power Ltd,146631,18/10/2018,10264591,TC,,2172239,689638949,PN,9525.43,43384
Capital Communities and Homes,Stretton Court AP,AGP13,Electricity,130,85,Total Gas & Power Ltd,146631,18/10/2018,10264591,TC,,2172239,689638949,PN,9525.43,43384
Capital Communities and Homes,Sun Street/Windsor Street AP,AGP14,Electricity,130,442.64,Total Gas & Power Ltd,146631,18/10/2018,10264591,TC,,2172239,689638949,PN,9525.43,43384
Capital Communities and Homes,Lesley Souter House AP,AGP16,Electricity,130,451.73,Total Gas & Power Ltd,146631,18/10/2018,10264591,TC,,2172239,689638949,PN,9525.43,43384
Capital Communities and Homes,Tanser Court AP,AGP17,Electricity,130,367.4,Total Gas & Power Ltd,146631,18/10/2018,10264591,TC,,2172239,689638949,PN,9525.43,43384
Capital Communities and Homes,Edward Court AP,AGP19,Electricity,130,218.46,Total Gas & Power Ltd,146631,18/10/2018,10264591,TC,,2172239,689638949,PN,9525.43,43384
Capital Communities and Homes,Albert Square AP,AGP20,Electricity,130,605.13,Total Gas & Power Ltd,146631,18/10/2018,10264591,TC,,2172239,689638949,PN,9525.43,43384
Capital Communities and Homes,Eliot Court AP,AGP25,Electricity,130,57.71,Total Gas & Power Ltd,146631,18/10/2018,10264591,TC,,2172239,689638949,PN,9525.43,43384
Capital Communities and Homes,Clare Court Site,AGP27,Electricity,130,28.66,Total Gas & Power Ltd,146631,18/10/2018,10264591,TC,,2172239,689638949,PN,9525.43,43384
Capital Communities and Homes,Alexandra/James Court AP,AGP30,Electricity,130,137.77,Total Gas & Power Ltd,146631,18/10/2018,10264591,TC,,2172239,689638949,PN,9525.43,43384
Capital Communities and Homes,Hirst Close AP,AGP33,Electricity,130,67.64,Total Gas & Power Ltd,146631,18/10/2018,10264591,TC,,2172239,689638949,PN,9525.43,43384
Capital Communities and Homes,Assheton Close AP,AGP36,Electricity,130,42.79,Total Gas & Power Ltd,146631,18/10/2018,10264591,TC,,2172239,689638949,PN,9525.43,43384
Capital Communities and Homes,Bennett Court/Warwick Road AP,AGP38,Electricity,130,35.98,Total Gas & Power Ltd,146631,18/10/2018,10264591,TC,,2172239,689638949,PN,9525.43,43384
Capital Communities and Homes,Brookside Pailton AP,AGP40,Electricity,130,50.34,Total Gas & Power Ltd,146631,18/10/2018,10264591,TC,,2172239,689638949,PN,9525.43,43384
Capital Communities and Homes,Clifton Road AP,AGP41,Electricity,130,18.24,Total Gas & Power Ltd,146631,18/10/2018,10264591,TC,,2172239,689638949,PN,9525.43,43384
Capital Communities and Homes,Deepmore Road/Lytham Road AP,AGP42,Electricity,130,143.04,Total Gas & Power Ltd,146631,18/10/2018,10264591,TC,,2172239,689638949,PN,9525.43,43384
Capital Communities and Homes,Edmondson Close Dunchurch AP,AGP44,Electricity,130,139.25,Total Gas & Power Ltd,146631,18/10/2018,10264591,TC,,2172239,689638949,PN,9525.43,43384
Capital Communities and Homes,Featherbed Lane I AP,AGP45,Electricity,130,121.45,Total Gas & Power Ltd,146631,18/10/2018,10264591,TC,,2172239,689638949,PN,9525.43,43384
Capital Communities and Homes,Fox Close AP,AGP47,Electricity,130,42.55,Total Gas & Power Ltd,146631,18/10/2018,10264591,TC,,2172239,689638949,PN,9525.43,43384
Capital Communities and Homes,Great Balance Brinklow AP,AGP48,Electricity,130,61.79,Total Gas & Power Ltd,146631,18/10/2018,10264591,TC,,2172239,689638949,PN,9525.43,43384
Capital Communities and Homes,Harold Cox Place AP,AGP51,Electricity,130,51.35,Total Gas & Power Ltd,146631,18/10/2018,10264591,TC,,2172239,689638949,PN,9525.43,43384
Capital Communities and Homes,Jackson Road I AP,AGP53,Electricity,130,23.11,Total Gas & Power Ltd,146631,18/10/2018,10264591,TC,,2172239,689638949,PN,9525.43,43384
Capital Communities and Homes,Lever Road I AP,AGP57,Electricity,130,106.78,Total Gas & Power Ltd,146631,18/10/2018,10264591,TC,,2172239,689638949,PN,9525.43,43384
Capital Communities and Homes,Meadow Way/Primrose Court AP,AGP58,Electricity,130,78.61,Total Gas & Power Ltd,146631,18/10/2018,10264591,TC,,2172239,689638949,PN,9525.43,43384
Capital Communities and Homes,Norman Road AP,AGP60,Electricity,130,9.97,Total Gas & Power Ltd,146631,18/10/2018,10264591,TC,,2172239,689638949,PN,9525.43,43384
Capital Communities and Homes,Patterdale AP,AGP61,Electricity,130,22.4,Total Gas & Power Ltd,146631,18/10/2018,10264591,TC,,2172239,689638949,PN,9525.43,43384
Capital Communities and Homes,The Kent AP,AGP67,Electricity,130,44.32,Total Gas & Power Ltd,146631,18/10/2018,10264591,TC,,2172239,689638949,PN,9525.43,43384
Capital Communities and Homes,Victoria Street/Lawford Road AP,AGP68,Electricity,130,12.8,Total Gas & Power Ltd,146631,18/10/2018,10264591,TC,,2172239,689638949,PN,9525.43,43384
Capital Communities and Homes,Parkfield Road/Lea Crescent AP,AGP71,Electricity,130,134.25,Total Gas & Power Ltd,146631,18/10/2018,10264591,TC,,2172239,689638949,PN,9525.43,43384
Capital Communities and Homes,Pennington Street/Round Street AP,AGP72,Electricity,130,83.43,Total Gas & Power Ltd,146631,18/10/2018,10264591,TC,,2172239,689638949,PN,9525.43,43384
Capital Communities and Homes,Control Centre CCTV,CCE01,Electricity,130,443.59,Total Gas & Power Ltd,146631,18/10/2018,10264591,TC,,2172239,689638949,PN,9525.43,43384
Capital Communities and Homes,Supervision and Management General,MAN00,Electricity,130,148.69,Total Gas & Power Ltd,146631,18/10/2018,10264591,TC,,2172239,689638949,PN,9525.43,43384
Capital Communities and Homes,Multi-Storey Flats,MSF00,Electricity,130,2410.9,Total Gas & Power Ltd,146631,18/10/2018,10264591,TC,,2172239,689638949,PN,9525.43,43384
Capital Communities and Homes,Woodside Park,TVR00,Electricity,130,333.4,Total Gas & Power Ltd,146631,18/10/2018,10264591,TC,,2172239,689638949,PN,9525.43,43384
Capital Communities and Homes,Corporate Property Central Utilities,CPA02,Electricity,130,1263.67,Total Gas & Power Ltd,146631,18/10/2018,10264592,TC,,2172239,689638949,PN,1435.31,43384
Capital Communities and Homes,Corporate Property Central Utilities,CPA02,Electricity,130,8493.52,Total Gas & Power Ltd,146631,18/10/2018,10264593,TC,,2172239,689638949,PN,11642,43384
Capital Communities and Homes,Crematorium,CRM00,Electricity,130,1155.5,Total Gas & Power Ltd,146631,18/10/2018,10264593,TC,,2172239,689638949,PN,11642,43384
Environment and Public Realm,Unplanned Maintenance and Repair,UMR00,Electricity,130,80.57,Total Gas & Power Ltd,146631,18/10/2018,10264593,TC,,2172239,689638949,PN,11642,43384
Capital Communities and Homes,Multi-Storey Flats,MSF00,Other Miscellaneous Expenses,444,1920,Environmental Essentials Ltd,146842,18/10/2018,10264594,TC,,5097507,844887474,PN,2304,43384
Capital Communities and Homes,Retired Employees,RET00,Employers' Superannuation Contribution,2,25916.67,WCC Pension Fund,146914,11/10/2018,10264502,NT,,,,PN,25916.67,43382
Capital Communities and Homes,Retired Employees,RET00,Additional Pension Payments,14,9492,WCC Pension Fund,146914,18/10/2018,10264724,NT,,,,PN,9492,43390
Capital Communities and Homes,Corporate Property R&M,CPA01,R&M External Contractors,100,922,PTSG Access & Safety Ltd,147094,25/10/2018,10264831,TC,,3233894,670755713,PN,1106.4,43392
Environment and Public Realm,Domestic Waste Collection/Recycling,REF00,External Contractor & Operator,742,1020,James Baxter Haulage Ltd,147159,04/10/2018,10264159,TC,,,620070986,PN,1224,43374
Environment and Public Realm,Domestic Waste Collection/Recycling,REF00,External Contractor & Operator,742,850,James Baxter Haulage Ltd,147159,11/10/2018,10264384,TC,,,620070986,PN,1020,43377
Environment and Public Realm,Domestic Waste Collection/Recycling,REF00,External Contractor & Operator,742,680,James Baxter Haulage Ltd,147159,25/10/2018,10264769,TC,,,620070986,PN,816,43391
Environment and Public Realm,Domestic Waste Collection/Recycling,REF00,External Contractor & Operator,742,850,James Baxter Haulage Ltd,147159,25/10/2018,10264786,TC,,,620070986,PN,1020,43391
Environment and Public Realm,Domestic Waste Collection/Recycling,REF00,Contract Hire,220,775,Trash UK Limited,147379,04/10/2018,10264085,TC,,3862427,738802807,PN,930,43370
Environment and Public Realm,Domestic Waste Collection/Recycling,REF00,Contract Hire,220,775,Trash UK Limited,147379,11/10/2018,10264339,TC,,3862427,738802807,PN,930,43376
Environment and Public Realm,Domestic Waste Collection/Recycling,REF00,Contract Hire,220,775,Trash UK Limited,147379,25/10/2018,10264532,TC,,3862427,738802807,PN,930,43383
Environment and Public Realm,Unplanned Maintenance and Repair,UMR00,External Contractor & Operator,742,500,Howard Ward Associates LLP,147433,25/10/2018,10264765,TC,,0C307294,119099062,PN,600,43390
Environment and Public Realm,Grounds Maintenance,PKS20,Vehicle Repair and Maintenance,200,875.62,Tallis Amos Group Limited,147758,04/10/2018,10264218,TC,,,377274127,PN,1050.74,43375
Capital Communities and Homes,Biart Place - Capital,BIA00,Capital Compensation Payments,5010,1750,Personal Redacted Data,148268,04/10/2018,10264095,NT,,,,PN,1750,43370
Capital Communities and Homes,Biart Place - Capital,BIA00,Capital Compensation Payments,5010,5535.62,Personal Redacted Data,148369,04/10/2018,10264107,NT,,,,PN,5535.62,43371
Environment and Public Realm,Unplanned Maintenance and Repair,UMR00,External Contractor & Operator,742,1345,A & A Lamb Ltd,148461,04/10/2018,10264335,CS,,3955578,289814502,PN,1614,43376
Capital Communities and Homes,CAST - Private Sector Leasing,CAS03,Building cleaning,170,1487.31,Solutions Services,148937,04/10/2018,10264158,TC,,,831753431,PN,1784.76,43374
Capital Communities and Homes,Gypsy & Traveller Enforcement,TRA00,External Contractor & Operator,742,800,The Bailiff Company T/A Civil Enforcement Agents Ltd,149091,04/10/2018,10264098,TC,,,258316101,PN,960,43371
Capital Communities and Homes,CL Grants,CGS00,Grants To Voluntary Organisations,720,1085,Warwickshire Vision Support,149127,18/10/2018,10264619,NT,,,,PN,1085,43384
Environment and Public Realm,Miscellaneous Unplanned Maintenance and Repair,UMR17,R&M External Contractors,100,1466.45,Arden Health and Safety,149273,04/10/2018,10264128,TC,,,,PN,1759.74,43371
Environment and Public Realm,Miscellaneous Unplanned Maintenance and Repair,UMR17,R&M External Contractors,100,1542.9,Arden Health and Safety,149273,18/10/2018,10264579,TC,,,,PN,1851.48,43384
Environment and Public Realm,Miscellaneous Unplanned Maintenance and Repair,UMR17,R&M External Contractors,100,6.95,Arden Health and Safety,149273,18/10/2018,10264580,TC,,,,PN,1435.09,43384
Capital Communities and Homes,Fire Risk Prevention Works,HCE18,Capital Contract Payments,5000,1188.96,Arden Health and Safety,149273,18/10/2018,10264580,TC,,,,PN,1435.09,43384
Environment and Public Realm,Garage,WVR00,Materials,303,990.93,Grenke Leasing Ltd,149293,04/10/2018,10264204,TC,,4539806,803892226,PN,1189.12,43374
Environment and Public Realm,Garage,WVR00,Materials,303,1127.85,Grenke Leasing Ltd,149293,04/10/2018,10264205,TC,,4539806,803892226,PN,1353.42,43374
Environment and Public Realm,Grants and Subscriptions,LGS00,Grants To Voluntary Organisations,720,535,1st Brinklow Scout Group,149304,04/10/2018,10264334,NT,,,,PN,535,43376
Environment and Public Realm,Garage,WVR00,Materials,303,738.67,Tom Tom International BV,149311,25/10/2018,10264609,TC,,,273433560,PN,886.4,43384
Environment and Public Realm,Maintenance of Customer Services Systems,CIS21,Software Maintenance,374,1300.97,Delta Computer Services,149319,25/10/2018,10264787,TC,,,436057260,PN,1561.16,43391
Environment and Public Realm,Hackney Carriages and Private Hire Vehicles,HKC02,Purchases for Resale,305,427.72,VIP-SYSTEM Ltd,149351,04/10/2018,10264267,TC,,SC132864,383040374,PI,513.26,43376
Environment and Public Realm,Control Centre CCTV,CCE01,Maintenance of Equipment,301,2666.66,Close Circuit Security Services Ltd,149426,11/10/2018,10264133,TC,,3543850,695360895,PN,3199.99,43371
Environment and Public Realm,Parks,PKS00,Maintenance of Equipment,301,4614,The Great Outdoor Gym Company Ltd,149509,04/10/2018,10263916,TC,,,909929912,PI,5536.8,43367
Environment and Public Realm,Parks,PKS00,Maintenance of Equipment,301,3157,The Great Outdoor Gym Company Ltd,149509,04/10/2018,10263977,TC,,,909929912,PI,3788.4,43367
Environment and Public Realm,Housing Management,MAN22,External Legal Costs,741,2060,Personal Redacted Data,149586,18/10/2018,10264104,TC,,,132731146,PN,2472,43371
Capital Communities and Homes,Civic Responsibilities,CIV00,Training fees,11,790,Ratcliffe Consultancy Ltd,149688,04/10/2018,10264222,TC,,6687861,,PN,790,43375
Capital Communities and Homes,Heating Upgrades,HIM01,Capital Contract Payments,5000,2489.84,PTS Plumbing,149845,18/10/2018,10264602,TC,,,408556737,PN,2987.81,43384
Capital Communities and Homes,Heating Upgrades,HIM01,Capital Contract Payments,5000,3175.48,PTS Plumbing,149845,18/10/2018,10264744,TC,,,408556737,PN,3810.58,43390
Capital Communities and Homes,General Financial Services,GFS00,Consultancy Costs,740,3812.5,Link Treasury Services Ltd,150056,11/10/2018,10264444,TC,,,2652033,PN,4575,43381
Environment and Public Realm,Garage,WVR00,Materials,303,36538.65,Emo Oil Ltd T/A Certas Energy,150275,04/10/2018,10264120,TC,,,,PI,43846.38,43371
Environment and Public Realm,Domestic Waste Collection/Recycling,REF00,Vehicle Repair and Maintenance,200,239.81,Rygor Commercials,150457,25/10/2018,10264612,TC,,1884237,4230072,PN,898.57,43384
Environment and Public Realm,Trade Waste Collection,WWC01,Vehicle Repair and Maintenance,200,509,Rygor Commercials,150457,25/10/2018,10264612,TC,,1884237,4230072,PN,898.57,43384
Capital Communities and Homes,ITC & Support Services,CIS10,Software/Equipment Licences,379,511.36,Insight UK Ltd,150801,04/10/2018,10264115,TC,,2579852,746075129,PI,613.63,43371
Capital Communities and Homes,ITC & Support Services,CIS10,Software/Equipment Licences,379,1578.75,Insight UK Ltd,150801,11/10/2018,10264548,TC,,2579852,746075129,PI,1894.5,43383
Environment and Public Realm,Regulatory Services,REG00,Vehicle Repair and Maintenance,200,804.77,Webb Ellis Autocentre Ltd,150882,11/10/2018,10264448,TC,,,212752337,PN,1005.73,43381
Environment and Public Realm,Regulatory Services,REG00,Vehicle Running Costs,201,40,Webb Ellis Autocentre Ltd,150882,11/10/2018,10264448,TC,,,212752337,PN,1005.73,43381
Environment and Public Realm,Purchase of Council Houses,PUR00,Capital Contract Payments,5000,680,HMRC Shipley,150936,04/10/2018,10264169,NT,,,,PN,680,43374
Environment and Public Realm,Lift maintenance,UMR14,R&M External Contractors,100,2655,Lift & Engineering Services Ltd,150984,18/10/2018,10264597,TC,,1913516,695967844',PN,3186,43384
Capital Communities and Homes,Grants and Subscriptions,LGS00,Grants To Voluntary Organisations,720,1000,Long Lawford Methodist Church,151019,11/10/2018,10264535,NT,,,,PN,1000,43383
Capital Communities and Homes,Grounds Maintenance,PKS20,External Contractor & Operator,742,5900,Glendale Grounds Management Ltd,151025,04/10/2018,10264211,TC,,,203324952,PN,7080,43374
Capital Communities and Homes,Grounds Maintenance,PKS20,External Contractor & Operator,742,7640.96,Glendale Grounds Management Ltd,151025,04/10/2018,10264212,TC,,,203324952,PN,9169.15,43374
Capital Communities and Homes,CAST - Private Sector Leasing,CAS03,Private Sector Leasing Scheme Properties,148,2250,Personal Redacted Data,151047,04/10/2018,10264304,TC,,,,PN,2250,43376
Environment and Public Realm,Laundry equipment maintenance,UMR15,R&M External Contractors,100,2782,JLA Ltd,151207,04/10/2018,10264253,TC,,1094178,566894869,PN,3338.4,43375
Capital Communities and Homes,CAST - Private Sector Leasing,CAS03,Private Sector Leasing Scheme Properties,148,1950,Personal Redacted Data,151216,18/10/2018,10264601,TC,,,,PN,1950,43384
Capital Communities and Homes,CAST - Private Sector Leasing,CAS03,Private Sector Leasing Scheme Properties,148,1350,Personal Redacted Data,151216,18/10/2018,10264678,TC,,,,PN,1350,43389
Capital Communities and Homes,CAST - Private Sector Leasing,CAS03,Private Sector Leasing Scheme Properties,148,1350,Personal Redacted Data,151216,18/10/2018,10264680,TC,,,,PN,1350,43389
Capital Communities and Homes,Supervision and Management General,MAN00,Consultancy Costs,740,7190,Glancy Nicholls Architects Ltd,151225,11/10/2018,10264124,TC,,5141809,846478287,PI,8628,43371
Capital Communities and Homes,Cattle Market Site,CMS00,Capital Contract Payments,5000,2500,Glancy Nicholls Architects Ltd,151225,04/10/2018,10264125,TC,,5141809,846478287,PI,3000,43371
Capital Communities and Homes,Art Gallery and Museum,AGM00,Childcare vouchers admin fee,7,19.44,Busy Bees Benefits Ltd,151230,11/10/2018,10264433,NT,,6758298,,PN,3996.04,43381
Capital Communities and Homes,Community Advice & Support Team,CAS00,Childcare vouchers admin fee,7,0.4,Busy Bees Benefits Ltd,151230,11/10/2018,10264433,NT,,6758298,,PN,3996.04,43381
Capital Communities and Homes,ITC & Support Services,CIS10,Childcare vouchers admin fee,7,0.4,Busy Bees Benefits Ltd,151230,11/10/2018,10264433,NT,,6758298,,PN,3996.04,43381
Capital Communities and Homes,Council Tax and NNDR Collection,CTX01,Childcare vouchers admin fee,7,0.8,Busy Bees Benefits Ltd,151230,11/10/2018,10264433,NT,,6758298,,PN,3996.04,43381
Capital Communities and Homes,Legal Services,DEM20,Childcare vouchers admin fee,7,5.33,Busy Bees Benefits Ltd,151230,11/10/2018,10264433,NT,,6758298,,PN,3996.04,43381
Capital Communities and Homes,Economic Development General,ECD00,Childcare vouchers admin fee,7,4.8,Busy Bees Benefits Ltd,151230,11/10/2018,10264433,NT,,6758298,,PN,3996.04,43381
Capital Communities and Homes,WTHEIP - Warwickshire Together Homelessness Early Intervention Project,HIP00,Childcare vouchers admin fee,7,9.72,Busy Bees Benefits Ltd,151230,11/10/2018,10264433,NT,,6758298,,PN,3996.04,43381
Capital Communities and Homes,Licencing,LIC00,Childcare vouchers admin fee,7,3.2,Busy Bees Benefits Ltd,151230,11/10/2018,10264433,NT,,6758298,,PN,3996.04,43381
Capital Communities and Homes,Sports and Recreation,LSD03,Childcare vouchers admin fee,7,7.71,Busy Bees Benefits Ltd,151230,11/10/2018,10264433,NT,,6758298,,PN,3996.04,43381
Capital Communities and Homes,Housing Management,MAN22,Childcare vouchers admin fee,7,9.72,Busy Bees Benefits Ltd,151230,11/10/2018,10264433,NT,,6758298,,PN,3996.04,43381
Capital Communities and Homes,Planning General/Income,PLN00,Childcare vouchers admin fee,7,18.52,Busy Bees Benefits Ltd,151230,11/10/2018,10264433,NT,,6758298,,PN,3996.04,43381
Capital Communities and Homes,Domestic Waste Collection/Recycling,REF00,Childcare vouchers admin fee,7,1,Busy Bees Benefits Ltd,151230,11/10/2018,10264433,NT,,6758298,,PN,3996.04,43381
Capital Communities and Homes,Regulatory Services,REG00,Childcare vouchers admin fee,7,19.44,Busy Bees Benefits Ltd,151230,11/10/2018,10264433,NT,,6758298,,PN,3996.04,43381
Capital Communities and Homes,Financial Services,RES10,Childcare vouchers admin fee,7,21.44,Busy Bees Benefits Ltd,151230,11/10/2018,10264433,NT,,6758298,,PN,3996.04,43381
Capital Communities and Homes,Human Resources,RES30,Childcare vouchers admin fee,7,4.4,Busy Bees Benefits Ltd,151230,11/10/2018,10264433,NT,,6758298,,PN,3996.04,43381
Capital Communities and Homes,Unplanned Maintenance and Repair,UMR00,Childcare vouchers admin fee,7,14.48,Busy Bees Benefits Ltd,151230,11/10/2018,10264433,NT,,6758298,,PN,3996.04,43381
Capital Communities and Homes,Visitor Centre,VSC00,Childcare vouchers admin fee,7,2,Busy Bees Benefits Ltd,151230,11/10/2018,10264433,NT,,6758298,,PN,3996.04,43381
Environment and Public Realm,Trade Waste Collection,WWC01,Childcare vouchers admin fee,7,9.72,Busy Bees Benefits Ltd,151230,11/10/2018,10264433,NT,,6758298,,PN,3996.04,43381
Capital Communities and Homes,Crime and Disorder Activities,CAD00,Development Activities,450,450,Buddi Ltd,151339,11/10/2018,10264369,TC,,5308826,867696451,PI,540,43377
Capital Communities and Homes,Hall of Fame,TRY00,External Contractor & Operator,742,430,CF Corporate Finance Ltd,151450,04/10/2018,10264091,TC,,,480912639,PN,516,43370
Capital Communities and Homes,Broadband & internet,TEL01,Telephone Expenses,371,666.66,HighSpeed Office Ltd,151543,18/10/2018,10264455,TC,,3935705,766384980,PN,799.99,43382
Capital Communities and Homes,Planning General/Income,PLN00,Consultancy Costs,740,3548.17,Nigel Reeves Planning & Urban Design Ltd,151614,04/10/2018,10264250,TC,,,,PN,3548.17,43375
Capital Communities and Homes,The Benn Hall,BHL00,Purchases for Resale,305,2040.43,Drays Wholesale Limited,151618,25/10/2018,10264840,TC,,,128586875,PN,2448.52,43395
Capital Communities and Homes,Section 106 Grounds Maintenance,PKS16,External Contractor & Operator,742,1250,Totally Trees Ltd,151679,25/10/2018,10264806,TC,,4628122,874165894,PI,1500,43391
Environment and Public Realm,Unplanned Maintenance and Repair,UMR00,R&M External Contractors,100,2343.93,Barkers Engineering Ltd,151706,04/10/2018,10263830,TC,,597466,278619084,PN,2812.71,43364
Capital Communities and Homes,CAST - Private Sector Leasing,CAS03,Private Sector Leasing Scheme Properties,148,1649.95,Personal Redacted Data,151718,11/10/2018,10264457,TC,,,,PN,1649.95,43382
Environment and Public Realm,Miscellaneous Unplanned Maintenance and Repair,UMR17,R&M External Contractors,100,685,Horizon Specialist Contracting Ltd,151749,04/10/2018,10264290,TC,,2827337,610613488,PN,822,43376
Capital Communities and Homes,Heating Upgrades,HIM01,Capital Contract Payments,5000,9706.06,UK Gas Services Ltd,151764,18/10/2018,10264716,CS,,2976617,974960175,PN,11647.27,43390
Capital Communities and Homes,Control Centre (HRA),CCE00,New Equipment,300,1980,Tunstall Healthcare,151791,18/10/2018,10264546,TC,,1332249,182879709,PI,2376,43383
Capital Communities and Homes,Art Gallery and Museum,AGM00,Building cleaning,170,2343.75,Kingdom Service Group,151795,11/10/2018,10264149,CS,,2795197,582329526,PN,37045.31,43371
Capital Communities and Homes,Sheltered Housing,AGP00,Building cleaning,170,13090.67,Kingdom Service Group,151795,11/10/2018,10264149,CS,,2795197,582329526,PN,37045.31,43371
Capital Communities and Homes,The Benn Hall,BHL00,Building cleaning,170,1406.25,Kingdom Service Group,151795,11/10/2018,10264149,CS,,2795197,582329526,PN,37045.31,43371
Capital Communities and Homes,Community Advice & Support Team,CAS00,Building cleaning,170,124.29,Kingdom Service Group,151795,11/10/2018,10264149,CS,,2795197,582329526,PN,37045.31,43371
Capital Communities and Homes,Car Parks General,CPK01,Building cleaning,170,398,Kingdom Service Group,151795,11/10/2018,10264149,CS,,2795197,582329526,PN,37045.31,43371
Capital Communities and Homes,Crematorium,CRM00,Building cleaning,170,826,Kingdom Service Group,151795,11/10/2018,10264149,CS,,2795197,582329526,PN,37045.31,43371
Capital Communities and Homes,Housing Management,MAN22,Building cleaning,170,2819.57,Kingdom Service Group,151795,11/10/2018,10264149,CS,,2795197,582329526,PN,37045.31,43371
Capital Communities and Homes,Multi-Storey Flats,MSF00,Building cleaning,170,1584.56,Kingdom Service Group,151795,11/10/2018,10264149,CS,,2795197,582329526,PN,37045.31,43371
Capital Communities and Homes,Town Hall,OFF00,Building cleaning,170,4634.67,Kingdom Service Group,151795,11/10/2018,10264149,CS,,2795197,582329526,PN,37045.31,43371
Environment and Public Realm,Parks,PKS00,Building cleaning,170,220.5,Kingdom Service Group,151795,11/10/2018,10264149,CS,,2795197,582329526,PN,37045.31,43371
Environment and Public Realm,WSU Depot,WDP00,Building cleaning,170,436.83,Kingdom Service Group,151795,11/10/2018,10264149,CS,,2795197,582329526,PN,37045.31,43371
Environment and Public Realm,Town Centre Public Conveniences,PCS00,Toilet Cleaning,173,2500,Kingdom Service Group,151795,11/10/2018,10264149,CS,,2795197,582329526,PN,37045.31,43371
Capital Communities and Homes,Unplanned Maintenance and Repair,UMR00,Toilet Cleaning,173,486,Kingdom Service Group,151795,11/10/2018,10264149,CS,,2795197,582329526,PN,37045.31,43371
Capital Communities and Homes,Human Resources Centralised Services,RES31,Recruitment Expenses,12,2925,Growth Hub Business Solutions,151836,04/10/2018,10264271,TC,,10369498,66928359,PI,3510,43376
Capital Communities and Homes,Human Resources Centralised Services,RES31,Recruitment Expenses,12,1695,Growth Hub Business Solutions,151836,18/10/2018,10264491,TC,,10369498,66928359,PI,2034,43382
Capital Communities and Homes,Corporate Property Administration,CPA00,New Equipment,300,648.95,PCM Technology Solutions Ltd,151837,04/10/2018,10264233,TC,,103216566,264198089,PI,778.74,43375
Capital Communities and Homes,ICT Renewal Programme,CMP00,IT Capital Expenditure,5025,3114.96,PCM Technology Solutions Ltd,151837,04/10/2018,10264234,TC,,103216566,264198089,PI,3737.95,43375
Capital Communities and Homes,ICT Renewal Programme,CMP00,IT Capital Expenditure,5025,863.05,PCM Technology Solutions Ltd,151837,11/10/2018,10264368,TC,,103216566,264198089,PI,1035.66,43377
Capital Communities and Homes,ICT Renewal Programme,CMP00,IT Capital Expenditure,5025,1074.95,PCM Technology Solutions Ltd,151837,11/10/2018,10264476,TC,,103216566,264198089,PI,1289.94,43382
Capital Communities and Homes,ITC & Support Services,CIS10,New Equipment,300,600.75,PCM Technology Solutions Ltd,151837,25/10/2018,10264808,TC,,103216566,264198089,PI,720.9,43391
Capital Communities and Homes,Housing Management System,HCE08,IT Capital Expenditure,5025,2205,Gravitas Recruitment Group,151921,11/10/2018,10264157,TC,,6959984,974844372,PN,2646,43374
Capital Communities and Homes,Parks,PKS00,Internal Contractor,743,500,Whinfield Community Allotment Association,151949,25/10/2018,10264834,NT,,,,PN,500,43392
Capital Communities and Homes,CAST - Private Sector Leasing,CAS03,Private Sector Leasing Scheme Properties,148,6741,Dreambuilder Financial Ltd,151961,18/10/2018,10264600,NT,,,,PN,6741,43384
Capital Communities and Homes,CAST - Private Sector Leasing,CAS03,Private Sector Leasing Scheme Properties,148,1800,Personal Redacted Data,151978,18/10/2018,10264679,NT,,,,PN,1800,43389
Environment and Public Realm,Street Cleansing General,STC00,Materials,303,637.5,Hammonds Hygiene Solutions Ltd,152004,18/10/2018,10264514,TC,,6143231,770138146,PI,765,43383
Capital Communities and Homes,CAST - Private Sector Leasing,CAS03,Private Sector Leasing Scheme Properties,148,2175,Personal Redacted Data,152057,18/10/2018,10264670,NT,,,,PN,2175,43389
Capital Communities and Homes,CAST - Private Sector Leasing,CAS03,Private Sector Leasing Scheme Properties,148,2025,Personal Redacted Data,152060,11/10/2018,10264477,NT,,,,PN,2025,43382
Capital Communities and Homes,Nightly Paid Self Contained Accommodation,CAS07,Nightly Self Contained Accommodation,149,18555,Centennial Property T/A The Housing Network,152075,04/10/2018,10264247,TC,,,,PN,18555,43375
Capital Communities and Homes,Central Business Support Services,CSS15,New Equipment,300,683,Legacy Telecom Ltd,152108,04/10/2018,10264122,TC,,,,PI,819.6,43371
Capital Communities and Homes,The Benn Hall,BHL00,Special Events/Activities,447,1020,Personal Redacted Data,152168,25/10/2018,10264976,NT,,,,PN,1020,43397
Capital Communities and Homes,CAST - Private Sector Leasing,CAS03,Private Sector Leasing Scheme Properties,148,2100,Personal Redacted Data,152221,04/10/2018,10264196,NT,,,,PN,2100,43374
Capital Communities and Homes,Biart Place - Capital,BIA00,Capital Compensation Payments,5010,5744.24,Personal Redacted Data,152243,25/10/2018,10264789,NT,,,,PN,5744.24,43391
Capital Communities and Homes,Biart Place - Capital,BIA00,Capital Compensation Payments,5010,6100,Personal Redacted Data,152253,04/10/2018,10264262,NT,,,,PN,6100,43376
Capital Communities and Homes,Biart Place - Capital,BIA00,Capital Compensation Payments,5010,5840,Personal Redacted Data,152255,04/10/2018,10264285,NT,,,,PN,5840,43376
Capital Communities and Homes,Biart Place - Capital,BIA00,Capital Compensation Payments,5010,5640.24,Personal Redacted Data,152266,18/10/2018,10264661,NT,,,,PN,5640.24,43385
Capital Communities and Homes,Biart Place - Capital,BIA00,Capital Compensation Payments,5010,5678.32,Personal Redacted Data,152269,18/10/2018,10264676,NT,,,,PN,5678.32,43389
Capital Communities and Homes,Safety and Resilience,EPL00,Training fees,11,774.7,RISC Associates Ltd,152278,18/10/2018,10264690,TC,,,,PI,919.2,43389
Capital Communities and Homes,Human Resources Centralised Services,RES31,Training fees,11,3325,Samaritans,152286,04/10/2018,10264176,TC,,,236846775,PI,3990,43374
Capital Communities and Homes,Biart Place - Capital,BIA00,Capital Compensation Payments,5010,2682.25,Personal Redacted Data,152292,18/10/2018,10264659,NT,,,,PN,2682.25,43385
Capital Communities and Homes,Corporate Property R&M,CPA01,R&M External Contractors,100,3085.4,Future Industrial Services Ltd,152299,18/10/2018,10264681,TC,,3734986,274250510,PN,3702.48,43389
Capital Communities and Homes,Art Gallery and Museum,AGM00,Development Activities,450,600,Personal Redacted Data,152302,11/10/2018,10264201,TC,,,,PN,600,43374
Capital Communities and Homes,Art Gallery and Museum,AGM00,Development Activities,450,760,DP Mouldings Ltd,152303,11/10/2018,10264202,TC,,8895815,183310528,PN,912,43374
Capital Communities and Homes,Visitor Centre,VSC00,Publicity & Marketing,377,905.88,Personal Redacted Data,152308,18/10/2018,10264688,TC,,,786681470,PI,905.88,43389
Capital Communities and Homes,Grants and Subscriptions,LGS00,Grants To Voluntary Organisations,720,1000,Rugby Swimming Club (Speed Section),152315,11/10/2018,10264485,NT,,,,PN,1000,43382
Capital Communities and Homes,The Benn Hall,BHL00,Other Miscellaneous Expenses,444,1600,Cebtre Stage Promotions Ltd,152316,11/10/2018,10264458,TC,,9018962,187008694,PN,1920,43382
Capital Communities and Homes,Grants and Subscriptions,LGS00,Grants To Voluntary Organisations,720,500,Indian Sports group,152317,11/10/2018,10264483,NT,,,,PN,500,43382
Capital Communities and Homes,CL Grants,CGS00,Grants To Voluntary Organisations,720,1000,Rugby Indian Youth Group,152318,11/10/2018,10264536,NT,,,,PN,1000,43383
Capital Communities and Homes,Biart Place - Capital,BIA00,Capital Compensation Payments,5010,1500,Personal Redacted Data,152320,18/10/2018,10264590,NT,,,,PN,1500,43384
Capital Communities and Homes,Biart Place - Capital,BIA00,Capital Compensation Payments,5010,1500,Personal Redacted Data,152322,18/10/2018,10264642,NT,,,,PN,1500,43385
Capital Communities and Homes,Customer Support Services,CSS00,Uniforms,341,917.16,PCL Corporate Wear,152324,25/10/2018,10264719,TC,,,639939868,PN,917.16,43390
Capital Communities and Homes,Biart Place - Capital,BIA00,Capital Compensation Payments,5010,1750,Personal Redacted Data,152325,18/10/2018,10264704,NT,,,,PN,1750,43389
Outside portfolio expenditure,Balance Sheet,BS,Car Loan Scheme,9261,3150,Personal Redacted Data,152331,18/10/2018,10264757,NT,,,,PN,3150,43390
Capital Communities and Homes,Biart Place - Capital,BIA00,Capital Compensation Payments,5010,1750,Personal Redacted Data,152335,25/10/2018,10264788,NT,,,,PN,1750,43391
Communities and Homes,CAST - Bed & Breakfast,CAS01,Bed and Breakfast Temporary Accommodation,146,460.83,The Carlton Hotel ,,19/10/2018,47402,,,,,,,
Communities and Homes,CAST - Bed & Breakfast,CAS01,Bed and Breakfast Temporary Accommodation,146,460.83,The Carlton Hotel ,,19/10/2018,47402,,,,,,,
Housing Revenue Account,Miscellaneous Unplanned Maintenance and Repair,UMR17,R&M External Contractors,100,850,Bigdug Ltd,,16/10/2018,47404,,,,,,,
Housing Revenue Account,Unplanned Maintenance and Repair,UMR00,Materials,303,999,the Key Safe Company,,16/10/2018,47404,,,,,,,
Communities and Homes,ITC & Support Services,CIS10,New Equipment,300,1366.86,Teamviewer,,16/10/2018,47404,,,,,,,
Communities and Homes,CAST - Bed & Breakfast,CAS01,Bed and Breakfast Temporary Accommodation,146,460.83,The Carlton Hotel ,,16/10/2018,47499,,,,,,,
Communities and Homes,CAST - Bed & Breakfast,CAS01,Bed and Breakfast Temporary Accommodation,146,460.83,The Carlton Hotel ,,16/10/2018,47499,,,,,,,
Communities and Homes,CAST - Bed & Breakfast,CAS01,Bed and Breakfast Temporary Accommodation,146,460.83,The Carlton Hotel ,,16/10/2018,47499,,,,,,,
Communities and Homes,CAST - Bed & Breakfast,CAS01,Bed and Breakfast Temporary Accommodation,146,460.83,The Carlton Hotel ,,16/10/2018,47499,,,,,,,
Communities and Homes,CAST - Bed & Breakfast,CAS01,Bed and Breakfast Temporary Accommodation,146,460.83,The Carlton Hotel ,,16/10/2018,47499,,,,,,,
Communities and Homes,CAST - Bed & Breakfast,CAS01,Bed and Breakfast Temporary Accommodation,146,460.83,The Carlton Hotel ,,16/10/2018,47499,,,,,,,
Communities and Homes,CAST - Bed & Breakfast,CAS01,Bed and Breakfast Temporary Accommodation,146,495.83,The Carlton Hotel ,,16/10/2018,47499,,,,,,,
Communities and Homes,CAST - Bed & Breakfast,CAS01,Bed and Breakfast Temporary Accommodation,146,495.83,The Carlton Hotel ,,16/10/2018,47499,,,,,,,
Communities and Homes,CAST - Bed & Breakfast,CAS01,Bed and Breakfast Temporary Accommodation,146,495.83,The Carlton Hotel ,,16/10/2018,47499,,,,,,,
Communities and Homes,CAST - Bed & Breakfast,CAS01,Bed and Breakfast Temporary Accommodation,146,495.83,The Carlton Hotel ,,16/10/2018,47499,,,,,,,
Housing Revenue Account,Supervision and Management General,MAN00,External Legal Costs,741,545,Nuneaton County Court,,16/10/2018,47499,,,,,,,
Environment and Public Realm,Domestic Waste Collection/Recycling,REF00,Vehicle Running Costs,201,652.5,DVLA,,16/10/2018,47499,,,,,,,
Communities and Homes,CAST - Bed & Breakfast,CAS01,Bed and Breakfast Temporary Accommodation,146,2367.5,Premier Inn,,02/10/2018,47279,,,,,,,
Environment and Public Realm,Private Hire Vehicles,HKC01,Other Miscellaneous Expenses,444,616,DBS,,03/10/2018,47285,,,,,,,
Communities and Homes,Biart Place - Capital,BIA00,Capital Compensation Payments,5010,1750,Personal Redacted Data,,08/10/2018,47319,,,,,,,
Communities and Homes,Private Sector Leasing,CAS06,Rent In Advance,137,1800,Personal Redacted Data,,09/10/2018,47325,,,,,,,
Communities and Homes,CAST - Bed & Breakfast,CAS01,Bed and Breakfast Temporary Accommodation,146,2541.75,Travelodge,,15/10/2018,47372,,,,,,,
Communities and Homes,CAST - Bed & Breakfast,CAS01,Bed and Breakfast Temporary Accommodation,146,2383,Accor,,16/10/2018,47379,,,,,,,
Housing Revenue Account,Supervision and Management General,MAN00,External Legal Costs,741,2113,HMCTS,,16/10/2018,47478,,,,,,,
Communities and Homes,Private Sector Leasing,CAS06,Rent In Advance,137,1910,Shipways,,18/10/2018,47395,,,,,,,
Outside portfolio expenditure,User Balance Sheet Cost Centre,BSU,Collection Fund,9476,1021370,Cov & Warks Pooling,,19/10/2018,47408,,,,,,,
Communities and Homes,Private Sector Leasing,CAS06,Rent In Advance,137,2475,Personal Redacted Data,,19/10/2018,47407,,,,,,,
Communities and Homes,ITC & Support Services,CIS21,Software Maintenance,374,679.78,Bottomline Technologies,,19/10/2018,47438,,,,,,,
Outside portfolio expenditure,User Balance Sheet Cost Centre,BSU,Collection Fund,9476,2009417,DCLG,,22/10/2018,47419,,,,,,,
Outside portfolio expenditure,User Balance Sheet Cost Centre,BSU,Collection Fund,9476,386129,WCC County Fund,,22/10/2018,47420,,,,,,,
Corporate Resources,General Financial Services,GFS00,Payment Card Costs,445,3195.92,Capita,,23/10/2018,47500,,,,,,,
Communities and Homes,Biart Place - Capital,BIA00,Capital Compensation Payments,5010,5640.24,Personal Redacted Data,,24/10/2018,47455,,,,,,,
Communities and Homes,Private Sector Leasing,CAS06,Private Sector Leasing Scheme Properties,148,750,Personal Redacted Data,,26/10/2018,47475,,,,,,,
